Cogmind - Beta 14 @@@ ROGUE MODE // 2024.12.25 @ 13:08:34 Player: Perseus Result: Destroyed 0b10! Performance ------------- Evolutions (9) 4500 Regions Visited (47) 9400 Robots Destroyed (921) 4605 Value Destroyed (33583) 33583 Prototype IDs (180) 3600 Alien Tech Used (8) 1600 Bonus (41075) 41075 TOTAL SCORE: 98363 Bonus ------- High Alert Combat Kills 4213 Follower Combat Kills 4190 Awakened Behemoth Slayer 1000 Entered Garrisons 400 Network Hubs Disabled 800 Met Data Miner 300 Met Imprinter 300 Acquired ECA 300 Met Zhirov 300 Met Warlord at Base 500 MAIN.C Attacked Warlord 500 Warlord Defense Kills 10078 Built Enhanced Grunts 300 A7 Reached Mainframe 300 Met R17 at Cetus 500 Read Decrypted Archives 300 Used Core Reset Matrix 3000 Hacked Protovariant 500 Met R17 at Research 2000 Met Warlord at Research 2000 Met Sigix 2000 Escaped with Sigix 5000 Win 3000 Friendly Fire -706 Cogmind --------- Core Integrity 1572/1600 Matter 425/425 Energy 225/240 System Corruption 0% Temperature Cool (35) Movement Flying (17) Location Tau Ceti IV Orbit Parts ------- > --- POWER (2) -------- Backup Power VII Zero-point Reactor > --- PROPULSION (8) --- Electron Diverter Cooled Impulse Thruster Cooled Impulse Thruster Cooled Impulse Thruster Impulse Thruster Array Cooled Q-thruster Cooled Q-thruster > --- UTILITY (12) ----- High-capacity Storage Unit Experimental Sensor Array Experimental Signal Interpreter Experimental Terrain Scan Processor Experimental Reaction Control System Experimental Propulsion Shielding Experimental Utility Shielding Experimental Hacking Suite Experimental Hacking Suite Experimental Hacking Suite Experimental Hacking Suite Experimental System Shield > --- WEAPON (3) ------- Nanosword Sigix Broadsword > --- INVENTORY (20) --- Backup Power VII Mini Fusion Reactor Cooled Impulse Thruster Experimental Matter Compressor (500) Quantum Shading Machine Experimental Terrain Scanner Launcher Loader Femtoactuators Stasis Canceller Advanced Transmission Jammer 5H-AD0's Cloak Integrity Redistributor Improved Matter Neutralizer Smartbomb Launcher Z-bomb Delivery System CR-A16's Behemoth Slayer Sigix Containment Pod Peak State ------------ > --- POWER ------------ Backup Power VII Zero-point Reactor > --- PROPULSION ------- Cooled Field Propulsion Drive Electron Diverter Cooled Impulse Thruster Cooled Impulse Thruster Cooled Impulse Thruster Cooled Impulse Thruster Impulse Thruster Array > --- UTILITY ---------- High-capacity Storage Unit Quantum Shading Machine Experimental Sensor Array Experimental Signal Interpreter Experimental Terrain Scanner Experimental Terrain Scan Processor Experimental Utility Shielding Experimental Hacking Suite Experimental Hacking Suite Experimental Hacking Suite Experimental Hacking Suite Experimental System Shield > --- WEAPON ----------- Z-bomb Delivery System Sigix Broadsword > --- INVENTORY -------- Backup Power VII Mini Fusion Reactor Cooled Q-thruster Experimental Matter Compressor Launcher Loader Femtoactuators Advanced Transmission Jammer Advanced Reaction Control System 5H-AD0's Cloak Experimental Propulsion Shielding Integrity Redistributor Improved Matter Neutralizer Smartbomb Launcher Nanosword CR-A16's Behemoth Slayer Sigix Containment Pod [Rating: 233] Favorites ----------- Power Backup Power VII Engine Light Deuterium Engine Power Core Backup Power VII Reactor Mini Fusion Reactor Propulsion Nuclear Pulse Array Treads Light Treads Leg Zionite Composite Leg I Wheel Armored Huge Wheel Hover Unit Aerolev Unit Flight Unit Nuclear Pulse Array Utility Experimental Hacking Suite Device Experimental Sensor Array Storage Large Storage Unit Processor Experimental Signal Interpreter Hackware Experimental Hacking Suite Protection Experimental Utility Shielding Artifact Spacefold Activator Weapon Spear Energy Gun Precision Beam Rifle Energy Cannon Improved Matter Neutralizer Ballistic Gun Hypervelocity Coil Gun Ballistic Cannon Improved Light Cannon Launcher Smartbomb Launcher Special Weapon Improved Remote Datajack Impact Weapon Power Maul Slashing Weapon Plasma Sword Piercing Weapon Spear Special Melee Weapon Advanced Datajack Build | -11 -10 -10 -9 -9 -9 -8 -8 -8 -8 -8 -8 -8 -7 -7 -7 -7 -7 -7 -7 -6 -6 -6 -6 -6 -6 -6 -5 -5 -5 -5 -5 -5 -5 -5 -4 -4 -4 -4 -4 -4 -3 -3 -3 -3 -2 -2 -1 ------- Run | Yrd Mat Min Mat Min Exi Min Mat Gar Mat Gar Mat Sto Fac Was Fac Low Low Zio Dee Pro Fac Was Fac Low Low Dat Pro Fac Was Fac Ext Cet Arc Hub Fac Was Fac Upp Upp War Pro Res Qua Sec Res Tes Acc Slots Evolved 18 | . . . 2 . . . 2 . . . . . 2 . . . . . . . 2 . . . . . . 2 . . . . . . 2 . . . . . . 2 . . 2 . 2 Power 1 | . . . . . . . . . . . . . . . . . . . . . . . . . . . . 1 . . . . . . . . . . . . . . . . . . . Propulsion 6 | . . . . . . . 1 . . . . . 2 . . . . . . . 1 . . . . . . . . . . . . . . . . . . . . . . . 1 . 1 Utility 10 | . . . 2 . . . 1 . . . . . . . . . . . . . 1 . . . . . . 1 . . . . . . 2 . . . . . . 2 . . 1 . . Weapon 1 | . . . . . . . . . . . . . . . . . . . . . . . . . . . . . . . . . . . . . . . . . . . . . . . 1 Parts Attached 1775 | 9 11 3 43 15 4 6 47 16 26 36 4 46 52 9 42 18 53 20 45 45 49 . 45 28 20 5 20 127 2 58 49 8 4 63 104 3 131 39 31 21 39 48 43 107 39 21 121 Power 66 | 1 1 2 3 1 . . 2 . . 2 . 4 3 . . . . . 4 2 1 . 1 2 . . 1 5 . 2 2 1 . . 1 . 1 . . 4 4 4 . 7 . 2 3 Engine 19 | 1 . . 2 1 . . 2 . . 2 . 4 3 . . . . . . 1 . . . . . . 1 . . . . . . . . . . . . . 1 1 . . . . . Core 31 | . 1 2 1 . . . . . . . . . . . . . . . 2 1 . . 1 2 . . . 4 . 2 2 1 . . 1 . 1 . . 3 . 1 . 4 . 1 1 Reactor 16 | . . . . . . . . . . . . . . . . . . . 2 . 1 . . . . . . 1 . . . . . . . . . . . 1 3 2 . 3 . 1 2 Propulsion 155 | 2 . . 11 4 . . 14 5 4 6 3 11 8 3 . 2 3 4 7 2 7 . 2 . . 1 3 10 . 1 . . . 2 14 . 4 . . 3 2 5 . 5 1 1 5 Treads 62 | 2 . . 11 4 . . 14 5 3 6 2 10 4 1 . . . . . . . . . . . . . . . . . . . . . . . . . . . . . . . . . Leg 2 | . . . . . . . . . . . . . . . . . . . 1 . . . . . . . . . . . . . . . . . . . . . 1 . . . . . . Wheel 1 | . . . . . . . . . . . . . . . . . . . . . . . . . . . 1 . . . . . . . . . . . . . . . . . . . . Hover 3 | . . . . . . . . . . . . 1 . . . . . . 1 . . . . . . . . . . . . . . . . . . . . . . . . 1 . . . Flight 87 | . . . . . . . . . 1 . 1 . 4 2 . 2 3 4 5 2 7 . 2 . . 1 2 10 . 1 . . . 2 14 . 4 . . 3 1 5 . 4 1 1 5 Utility 795 | 3 5 1 10 1 2 3 10 5 11 6 1 6 22 . 19 4 17 9 21 31 23 . 27 13 5 3 4 63 1 29 31 1 2 38 42 3 67 13 10 9 14 21 35 58 25 6 65 Device 537 | 2 1 . 2 . . 2 4 3 6 4 . 1 11 . 11 2 12 5 15 28 11 . 20 5 3 2 3 42 . 24 21 . 1 23 33 3 51 7 7 5 10 8 27 44 22 3 53 Storage 19 | 1 1 . . . 2 1 . . 1 . . . 2 . . . . . 1 . 1 . . 1 . . . 1 . 1 . . . . 1 . . . . . . 1 . . 2 . 2 Processor 34 | . . . 3 . . . . 1 . 1 . 1 4 . 2 . . 2 1 1 3 . 1 1 . . . 3 1 . . . . . . . 2 1 . . . . 3 2 . . 1 Hackware 36 | . . . . . . . 2 . 1 . . 1 2 . 2 . 1 . . . 3 . 1 . . . . 4 . 2 . . . 4 4 . 1 . . . . 3 2 1 1 1 . Protection 165 | . 3 1 5 1 . . 4 1 3 1 1 3 3 . 4 2 4 2 4 2 5 . 5 6 2 1 1 13 . 2 10 1 1 11 4 . 13 5 3 4 4 9 3 7 . 2 9 Artifact 4 | . . . . . . . . . . . . . . . . . . . . . . . . . . . . . . . . . . . . . . . . . . . . 4 . . . Weapon 759 | 3 5 . 19 9 2 3 21 6 11 22 . 25 19 6 23 12 33 7 13 10 18 . 15 13 15 1 12 49 1 26 16 6 2 23 47 . 59 26 21 5 19 18 8 37 13 12 48 Energy Gun 132 | 2 . . 7 2 1 2 8 3 4 3 . 1 1 1 2 . 11 . 4 3 4 . 4 2 4 . 3 7 . 8 . . . 4 6 . 14 6 3 1 3 2 2 3 . . 1 Energy Cannon 42 | . . . . . . . . . . . . 2 2 1 . 3 4 . . . . . . . . . . . . 1 . . . . 1 . . . . . . 2 . 8 1 4 13 Ballistic Gun 101 | 1 4 . 5 1 1 1 5 1 3 16 . 13 4 1 5 4 7 . 4 4 1 . . 2 5 . . 1 . . . . . . 1 . 2 2 4 . 1 . . . . . 2 Ballistic Cannon 10 | . . . 1 2 . . 2 . 1 . . . . . . . . . . . 1 . . . . . . . . . . . . . 1 . . . . . . . . 1 . . 1 Launcher 92 | . . . . 1 . . 1 1 2 2 . 3 3 . 3 . 1 1 . . 1 . 2 2 2 . 2 10 . 2 2 2 . 2 7 . 8 8 4 2 3 3 1 4 . 2 5 Special Weapon 3 | . 1 . . . . . . . . . . . . . 1 . . . . . . . . . . . . . . . . . . 1 . . . . . . . . . . . . . Impact Weapon 5 | . . . . . . . . . . . . . . . . . 2 2 1 . . . . . . . . . . . . . . . . . . . . . . . . . . . . Slashing Weapon 153 | . . . 2 2 . . 5 . . . . 3 3 . 1 . 1 2 1 2 2 . 3 2 1 1 2 . . 1 . . . . 14 . 22 7 5 . 6 7 3 17 8 6 24 Piercing Weapon 134 | . . . . . . . . . . . . . 4 3 11 5 4 2 3 1 7 . 6 5 3 . 5 20 . 12 8 3 . 12 5 . 5 . . . 4 . 1 2 1 . 2 Special Melee Weapon 87 | . . . 4 1 . . . 1 1 1 . 3 2 . . . 3 . . . 2 . . . . . . 11 1 2 6 1 2 4 12 . 8 3 5 2 2 4 1 2 3 . . Unidentified Prototypes 48 | . . . 2 . . . 2 . . . 1 2 . . . . . . 11 1 . . 1 . . . . . . . . . . . 6 . 1 . . 8 4 . 1 1 3 2 2 Corrupted Parts 1 | . . . . . . . . . . . . . . . . . . 1 . . . . . . . . . . . . . . . . . . . . . . . . . . . . . System Corruption 10 | . . . . . . . . . . . . . . . . . . 10 . . . . . . . . . . . . . . . . . . . . . . . . . . . . . Parts Lost 41 | . . 1 5 4 . 1 5 1 1 2 . . 2 . . . 2 . . . 5 . . 2 . 2 . 4 . . 1 . . 2 . . . . . 1 . . . . . . . Power 7 | . . . 1 1 . . 1 . . 1 . . . . . . . . . . . . . 1 . . . 1 . . . . . . . . . . . 1 . . . . . . . Propulsion 12 | . . . . 2 . . 2 . . 1 . . . . . . 1 . . . 2 . . . . 2 . 2 . . . . . . . . . . . . . . . . . . . Utility 15 | . . 1 2 1 . 1 1 1 . . . . 1 . . . . . . . 2 . . 1 . . . 1 . . 1 . . 2 . . . . . . . . . . . . . Weapon 7 | . . . 2 . . . 1 . 1 . . . 1 . . . 1 . . . 1 . . . . . . . . . . . . . . . . . . . . . . . . . . Highest Loss Streak 3 | . . 1 2 2 . 1 3 1 1 1 . . 1 . . . 1 . . . 3 . . 2 . 2 . 2 . . 1 . . 2 . . . . . 1 . . . . . . . To Critical Strikes . | . . . . . . . . . . . . . . . . . . . . . . . . . . . . . . . . . . . . . . . . . . . . . . . . Average Slot Usage (%) 92 | . 99 100 97 89 89 99 98 100 98 100 100 98 93 92 92 92 85 91 91 91 94 93 94 92 92 91 87 83 88 87 87 83 88 87 92 94 93 90 93 90 93 94 92 89 91 90 91 Engine 2 | . 6 . 1 10 11 11 8 9 9 9 9 8 7 7 . . . . . . . . . . . . 4 2 . . . . . . . . . . . 2 4 1 . . . . . Core 5 | . 7 14 9 . . . . . . . . . . . 6 7 7 7 6 7 4 . 4 5 6 6 1 7 11 10 11 9 11 11 10 10 10 10 10 7 4 2 4 3 4 4 4 Treads 6 | . 28 28 22 22 22 22 26 27 27 27 27 26 14 . . . . . . . . . . . . . . . . . . . . . . . . . . . . . . . . . . Flight 20 | . . . . . . . . . . . . . 16 30 30 30 30 30 30 30 35 40 34 33 33 31 28 20 23 23 23 23 23 23 24 26 26 26 26 26 26 22 23 22 26 26 28 Device 8 | . . . 5 . . 9 10 11 8 9 12 9 7 7 6 13 9 12 11 7 7 6 7 9 7 5 7 8 5 10 6 . . 7 9 10 9 7 6 5 8 11 13 11 12 11 8 Storage 6 | . 14 14 11 11 11 11 9 9 9 9 9 9 7 7 7 7 7 7 7 7 6 6 6 5 6 6 6 5 5 5 5 5 5 5 5 5 5 5 5 5 5 4 4 4 4 4 4 Processor 9 | . . . 16 11 11 11 9 6 9 9 9 9 7 7 7 7 7 7 7 14 7 6 10 5 6 6 6 10 17 11 11 11 11 11 10 10 10 10 10 10 10 9 9 9 8 8 8 Hackware 10 | . . . . . . . 7 9 9 9 9 9 11 15 14 7 9 7 7 7 13 13 13 13 13 13 13 9 11 10 11 11 11 11 12 15 15 15 15 15 15 19 19 20 20 21 20 Protection 5 | . 13 14 8 12 22 12 8 9 8 8 6 8 3 . . 1 1 1 1 . 2 6 1 3 4 6 4 2 . . 3 10 11 2 8 5 5 7 8 8 6 5 4 4 4 4 7 Energy Gun 2 | . . . 5 10 . 11 6 8 8 9 9 9 3 . . . 4 . . . . . . . . . . . . . . . . . . . . . . . . . . . . . . Ballistic Gun 4 | . 27 28 8 10 . 11 8 9 8 8 9 7 3 . . 2 1 . 4 4 . . . 1 5 . . . . . . . . . . . . 1 2 . 1 . . . . . . Slashing Weapon 1 | . . . . . 1 . 1 . . . . . 1 . . . . 2 . 1 2 . 5 4 . 1 5 . . . . . . . 3 5 4 1 2 1 3 3 3 3 3 3 7 Piercing Weapon 2 | . . . . . . . . . . . . . 1 5 6 4 1 7 6 6 6 6 5 5 6 11 5 4 5 4 9 5 9 7 1 . . . . . 1 . . . . . . Special Melee Weapon 1 | . . . . . 11 . . . . . . . 3 7 7 7 1 . . . 2 . . . . . . 3 5 4 1 1 1 2 4 5 4 . 3 1 1 3 1 . 1 . . Peak Build Rating 233 | 9 14 15 21 19 18 22 37 41 42 47 47 44 63 67 76 75 75 82 88 87 99 90 102 101 96 96 90 116 116 122 121 120 116 125 138 139 144 145 146 150 155 176 191 199 210 209 233 Average Rating 90 | 7 12 13 18 17 15 20 32 36 37 37 44 39 53 63 72 73 71 73 84 83 92 89 96 95 93 91 85 103 115 116 118 111 114 118 130 134 139 140 140 141 143 170 182 188 202 204 226 On Entrance 90 | . 9 14 14 19 17 18 22 36 41 37 47 44 40 62 65 74 74 74 71 84 85 90 90 96 92 92 85 86 115 116 119 120 115 114 116 133 135 139 139 143 144 144 176 191 195 208 208 Naked Turns . | . . . . . . . . . . . . . . . . . . . . . . . . . . . . . . . . . . . . . . . . . . . . . . . . Heaviest Build 88 | 13 38 38 42 37 37 57 65 62 63 62 58 64 80 33 32 33 37 43 43 42 37 34 40 37 38 34 36 45 34 43 40 44 40 45 48 39 45 50 47 43 48 69 69 75 68 68 88 Greatest Support 104 | 40 40 40 40 40 40 40 62 62 62 67 67 67 104 32 32 33 34 34 33 33 39 36 38 38 38 38 32 43 40 43 43 46 43 46 47 44 52 48 45 45 45 65 74 85 72 72 99 Greatest Overweight (x) 2 | . . . 1 . . 1 2 . 1 1 . 1 . 1 . . 1 1 1 1 . . 1 . 1 . 1 1 . 1 . 1 . 1 1 . 1 1 1 . 2 1 1 1 . . 1 Average Overweight (x) . | . . . . . . . . . . . . . . . . . . . . . . . . . . . . . . . . . . . . . . . . . . . . . . . . Largest Inventory Capacity 20 | 8 15 15 15 15 20 20 20 20 20 20 20 20 20 15 15 15 15 15 15 15 15 15 15 15 15 15 15 15 15 15 15 15 15 15 15 15 15 15 15 15 15 20 20 20 20 20 20 Average Capacity 16 | 7 14 15 15 15 15 15 20 20 20 20 20 20 17 15 15 15 15 15 15 15 15 15 15 14 15 15 15 15 15 15 15 15 15 15 15 15 15 15 15 15 15 18 20 20 20 20 20 Most Carried 20 | 5 15 15 15 15 15 17 20 20 20 20 20 20 20 15 15 15 15 15 15 15 15 15 15 15 15 15 15 15 15 15 15 15 15 15 15 15 15 15 15 15 15 20 20 20 20 20 20 Average Carried 15 | 2 13 14 14 14 14 14 19 19 19 19 19 19 16 14 14 14 14 14 14 14 14 14 14 13 14 14 14 14 15 14 14 14 14 14 14 15 14 14 14 14 14 18 19 19 19 19 19 Final Capacity 20 | 8 15 15 15 15 15 20 20 20 20 20 20 20 15 15 15 15 15 15 15 15 15 15 15 15 15 15 15 15 15 15 15 15 15 15 15 15 15 15 15 15 15 20 20 20 20 20 20 Final Carried 20 | 5 15 15 13 15 14 16 20 20 20 20 20 20 15 15 15 15 15 15 15 15 15 15 15 15 15 14 15 15 15 15 15 15 15 14 15 15 15 15 15 15 15 20 20 20 20 20 20 Class Distribution -------------------- 21% | Hacker-Sprinter 17% | Mutant 13% | Sprinter 13% | Hacker-Scout 6% | Wizard-Scout 6% | Commander-Sprinter 6% | Scavenger-Mutant 3% | Scout Dominant Class ---------------- Mutant | -10/Materials Mutant | -10/Mines Mutant | -9/Materials Mutant | -9/Mines Scavenger-Mutant | -9/Exiles Scavenger-Mutant | -8/Mines Mutant | -8/Materials Mutant | -8/Garrison Scavenger-Mutant | -8/Materials Scavenger-Mutant | -8/Garrison Mutant | -8/Materials Mutant | -8/Storage Hacker-Sprinter | -7/Factory Hacker-Sprinter | -7/Waste Hacker-Sprinter | -7/Factory Scout | -7/Lower Caves Sprinter | -7/Lower Caves Commander-Sprinter | -7/Zion Sprinter | -7/Deep Caves Sprinter | -6/Proximity Caves Hacker-Sprinter | -6/Factory Hacker-Sprinter | -6/Waste Hacker-Sprinter | -6/Factory Hacker-Scout | -6/Lower Caves Hacker-Sprinter | -6/Lower Caves Commander-Sprinter | -6/Data Miner Hacker-Sprinter | -5/Proximity Caves Hacker-Sprinter | -5/Factory Hacker-Sprinter | -5/Waste Hacker-Scout | -5/Factory Commander-Sprinter | -5/Extension Commander-Sprinter | -5/Cetus Commander-Sprinter | -5/Archives Commander-Sprinter | -5/Hub_04(d) Hacker-Scout | -4/Factory Hacker-Scout | -4/Waste Hacker-Sprinter | -4/Factory Machinist-Sprinter | -4/Upper Caves Hacker-Sprinter | -4/Upper Caves Hacker-Sprinter | -4/Warlord Hacker-Scout | -3/Proximity Caves Wizard-Scout | -3/Research Wizard-Scout | -3/Quarantine Wizard-Scout | -3/Section 7 Wizard-Scout | -2/Research Wizard-Scout | -2/Testing Wizard-Scout | -1/Access Resources | -11 -10 -10 -9 -9 -9 -8 -8 -8 -8 -8 -8 -8 -7 -7 -7 -7 -7 -7 -7 -6 -6 -6 -6 -6 -6 -6 -5 -5 -5 -5 -5 -5 -5 -5 -4 -4 -4 -4 -4 -4 -3 -3 -3 -3 -2 -2 -1 ----------- Run | Yrd Mat Min Mat Min Exi Min Mat Gar Mat Gar Mat Sto Fac Was Fac Low Low Zio Dee Pro Fac Was Fac Low Low Dat Pro Fac Was Fac Ext Cet Arc Hub Fac Was Fac Upp Upp War Pro Res Qua Sec Res Tes Acc Matter Collected 33539 | 341 691 226 1227 456 42 231 968 498 493 850 14 1156 912 90 600 302 663 200 827 697 626 . 535 498 802 40 324 1705 . 705 571 160 126 675 1839 . 2565 778 827 1645 745 1060 498 1736 799 306 2490 Remotely . | . . . . . . . . . . . . . . . . . . . . . . . . . . . . . . . . . . . . . . . . . . . . . . . . Salvage Created 39840 | 257 819 457 1962 528 . 361 1221 1163 464 1071 97 2052 1604 . 633 445 754 39 576 939 1271 . 1407 756 620 . 197 3189 116 1054 582 30 69 657 1048 . 1828 775 940 2178 693 679 822 929 1113 222 3223 Parts 1888 | 21 43 27 130 27 . 32 71 79 29 41 10 99 82 . 43 17 30 7 41 37 65 . 43 37 19 . 5 163 4 48 35 2 6 32 45 . 84 40 19 75 18 21 28 57 37 8 131 Haulers Intercepted 42 | . 2 . 6 . . . 5 . 2 . . 6 1 . . . . . . 1 3 . 3 . . . . 2 1 3 . . . . 1 . 2 . . . . 1 . . 1 . 2 Recyclers Shooed 26 | . 1 1 2 . . 1 2 . 2 . . 1 2 . . . . . . . 2 . . . . . . 10 . 1 . . . . 1 . . . . . . . . . . . . Parts Field Recycled 2 | . 2 . . . . . . . . . . . . . . . . . . . . . . . . . . . . . . . . . . . . . . . . . . . . . . Retrieved Matter 26 | . 26 . . . . . . . . . . . . . . . . . . . . . . . . . . . . . . . . . . . . . . . . . . . . . . Parts Self-Destructed 174 | . . . . . . . . . . . . . . . . 18 19 . . 30 . . . 18 35 . 3 . . . . . . . . . . 19 11 . 21 . . . . . . Prevented 15 | . . . . . . . . . . . . . . . . . 11 . . 4 . . . . . . . . . . . . . . . . . . . . . . . . . . . Kills | -11 -10 -10 -9 -9 -9 -8 -8 -8 -8 -8 -8 -8 -7 -7 -7 -7 -7 -7 -7 -6 -6 -6 -6 -6 -6 -6 -5 -5 -5 -5 -5 -5 -5 -5 -4 -4 -4 -4 -4 -4 -3 -3 -3 -3 -2 -2 -1 ------- Run | Yrd Mat Min Mat Min Exi Min Mat Gar Mat Gar Mat Sto Fac Was Fac Low Low Zio Dee Pro Fac Was Fac Low Low Dat Pro Fac Was Fac Ext Cet Arc Hub Fac Was Fac Upp Upp War Pro Res Qua Sec Res Tes Acc Combat Hostiles Destroyed 601 | . 9 5 38 23 . 14 20 31 14 24 3 35 18 . 6 1 13 1 7 11 6 . 5 11 11 . 3 41 . 13 11 1 . 1 14 . 20 22 14 85 12 6 3 16 1 5 27 Melee 36 | . . . . . . . . . . . . . . . 2 1 1 1 1 2 1 . . . 1 . 2 7 . . 5 . . 1 . . 1 . . . 1 1 . 4 . 1 3 Guns 214 | . 9 5 26 5 . 14 13 28 9 20 3 19 12 . 3 . 9 . 6 9 1 . . 5 8 . . . . . . . . . . . 1 3 3 . 3 . . . . . . Cannons 20 | . . . 11 1 . . 5 . 1 . . . . . . . . . . . . . . . . . . . . . . . . . . . . . . . . . . 1 . . 1 AOE 321 | . . . 1 17 . . 2 3 4 4 . 16 6 . 1 . 3 . . . 4 . 5 4 2 . 1 33 . 12 5 1 . . 14 . 18 19 11 85 7 5 3 11 . 4 20 Classes Destroyed 28 | 2 5 1 3 2 . 1 1 . . . . 2 1 . . 1 . . 1 2 . . . 1 . . . 3 . . . . . . . . . . . 2 . . . . . . . Worker 65 | . 3 1 4 3 . 1 3 . 1 . . 2 1 . 1 . . . . . 2 . 2 . . . . 20 . 1 . . . 2 1 . 2 . . . . . 2 4 . 3 6 Builder 31 | . 1 . 1 1 . . 1 . . . . 2 2 . 1 . . . . . 1 . 3 . . . . 4 . 1 . . . 1 . . 4 . . . . . . 6 . 1 1 Tunneler 16 | 7 . 1 1 1 . 1 . . . . . . 1 . . . . . . . 1 . . . . . . 1 . . . . . . . . 1 . . . . . . . . . 1 Hauler 42 | . 2 . 6 . . . 5 . 2 . . 6 1 . . . . . . 1 3 . 3 . . . . 2 1 3 . . . . 1 . 2 . . . . 1 . . 1 . 2 Recycler 88 | 1 3 4 5 3 . . 1 . . . . 3 7 . 2 . . . . . 4 . 6 . . . . 10 . 3 . . . 3 4 . 6 . . . . 2 4 1 6 . 10 Carrier 1 | . . . . . . . . . . . . . . . . . . . . . . . . . . . . 1 . . . . . . . . . . . . . . . . . . . Minesweeper 4 | . . . . . . . . . . . . . . . . . . . . 1 . . . 1 . . 1 . . . . . . . . . . 1 . . . . . . . . . Mechanic 12 | . . . . . . . . . . . . 2 1 . . . . . . . 2 . . . . . . 1 . 1 . . . . 1 . 1 . . 1 . . 1 1 . . . Operator 15 | . . . 2 . . . 1 . . . 1 1 1 . . . . . . . 4 . . . . . . . . . . . . 1 1 . 1 . . . . 1 . . . . 1 Drone 4 | . . . . . . . . . . . . . . . . . . . . 1 . . . . . . . 1 . . . . . . . . . . . . 2 . . . . . . Watcher 77 | . 3 . 5 . . . 1 . . . . 1 5 . 4 . . . . . 4 . 2 . . . . 6 . 3 2 1 . 5 5 . 10 . . . . 1 3 2 2 1 11 Swarmer 184 | . . 2 19 3 . 11 4 13 8 3 2 3 5 . . . 3 . . 2 4 . . 4 3 . . 17 . 9 5 . . . 11 . 12 19 3 5 2 3 . 5 . . 4 Saboteur 15 | . . . . . . . . . . . . . . . . . . . . . . . . . . . . 1 . . . . . . . . . . . 14 . . . . . . . Grunt 220 | . 9 3 10 . . 2 5 8 4 18 1 19 7 . 3 . 8 . . 5 . . 4 3 5 . . 12 . 3 2 . . . 1 . 5 2 5 44 4 2 . 6 . 4 16 Brawler 13 | . . . 1 . . . 2 1 . . . 2 . . . . 1 . . . . . . 1 2 . . . . . . . . . . . . . . 2 . . . 1 . . . Duelist 10 | . . . . . . 1 . 1 . . . 1 . . . . . . . . . . . 1 . . . . . . . . . . . . 2 . . 1 2 . . . . . 1 Protector 9 | . . . . . . . . . . . . 4 . . . . . . . . . . . . . . . 1 . . . . . . . . . . . 4 . . . . . . . Sentry 56 | . . . 8 2 . . 7 8 1 2 . 6 5 . . . 1 . . 1 2 . . 1 1 . . . . . 3 . . 1 . . . 1 2 . 1 1 . 2 . . . Demolisher 2 | . . . . 1 . . . . . . . 1 . . . . . . . . . . . . . . . . . . . . . . . . . . . . . . . . . . . Specialist 10 | . . . . . . . . . . . . . . . . . . . . . . . . . . . . 1 . . . . . . . . . . . 6 . . 3 . . . . Hunter 19 | . . . . . . . 2 . 1 1 . . . . 2 1 . . . . . . 1 . . . . 3 . . . . . . . . . . 4 . . . . 2 . . 2 Programmer 22 | . . . . . . . . . . . . . 1 . 1 . . . . 2 . . . . . . 3 4 . . . . . . 2 . 1 . . 6 . . . . . 1 1 Behemoth 9 | . . . . . . . . . . . . . . . . . . . . . . . . 1 . . . 1 . 1 1 . . . . . . . . . 1 . . . 1 . 3 Cetus Guard 1 | . . . . . . . . . . . . . . . . . . . . . . . . . . . . . . . . 1 . . . . . . . . . . . . . . . Striker 1 | . . . . . . . . . . . . . . . . . . . . . . . . . . . . . . . . . . . . . . . . 1 . . . . . . . Executioner 2 | . . . . . . . . . . . . . . . . . . . . . . . . . . . . . . . . . . . . . . . . 2 . . . . . . . Z-Light 6 | . . . . . . . . . . . . . . . . . . . 6 . . . . . . . . . . . . . . . . . . . . . . . . . . . . Decomposer 10 | . . . . . . . . . . . . . . . . 1 1 . . . . . . . . . 3 . . . . . . . . . . . 5 . . . . . . . . Packrat 2 | . . . . . . . . . . . . . . . . . . . . . . . . 2 . . . . . . . . . . . . . . . . . . . . . . . Samaritan 10 | . . . . . . . . . . . . . . . . 4 . . . . . . . 2 . . 1 . . . . . . . . . . 3 . . . . . . . . . Assembled 18 | . . . . 17 . . . . . . . . . . . . . . 1 . . . . . . . . . . . . . . . . . . . . . . . . . . . . Savage 1 | . . . . . . . . . . . . . . . . . . . . . . . . . . . . . . . . . . . . . . . . 1 . . . . . . . Martyr 1 | . . . . . . . . . . . . . . . 1 . . . . . . . . . . . . . . . . . . . . . . . . . . . . . . . . Best Kill Streak 33 | 4 2 3 15 20 . 5 4 4 5 3 4 10 7 . 2 1 3 1 1 2 8 . 10 3 1 . 3 18 19 8 5 1 . 3 5 . 6 5 4 33 4 3 3 15 4 8 10 Combat Bots Only 33 | . 2 3 4 18 . 4 4 4 5 3 3 10 4 . 1 1 3 1 1 1 4 . 4 3 1 . 2 9 . 8 5 1 . 1 5 . 5 5 4 33 4 3 3 9 1 4 8 Max Kills in Single Turn 12 | 1 2 2 2 6 . 1 2 2 3 3 2 4 3 . 2 1 2 1 1 1 3 . 3 2 1 . 1 12 1 4 5 1 . 3 5 . 4 5 2 4 2 2 1 4 1 1 3 Gunslinging 1 | . . 1 . . . . . 1 . . 1 . . . . . . . . . . . . . . . . . . . . . . . . . . . . . . . . . . . . Exploded 6 | . . . 1 6 . . 2 2 3 3 . 3 3 . 1 . 2 . . . 2 . 1 2 1 . 1 5 . 4 5 1 . . 3 . 4 5 2 4 2 2 1 4 . 1 3 Melee 1 | . . . . . . . . . . . . . . . 1 1 1 1 1 1 1 . . . 1 . 1 1 . . 1 . . 1 . . 1 . . . 1 1 . 1 . 1 1 Uniques/NPCs Destroyed 1 | . . . . . . . . . . . . . . . . . . 1 . . . . . . . . . . . . . . . . . . . . . . . . . . . . . Imprinter (-7/Zion) Combat | -11 -10 -10 -9 -9 -9 -8 -8 -8 -8 -8 -8 -8 -7 -7 -7 -7 -7 -7 -7 -6 -6 -6 -6 -6 -6 -6 -5 -5 -5 -5 -5 -5 -5 -5 -4 -4 -4 -4 -4 -4 -3 -3 -3 -3 -2 -2 -1 -------- Run | Yrd Mat Min Mat Min Exi Min Mat Gar Mat Gar Mat Sto Fac Was Fac Low Low Zio Dee Pro Fac Was Fac Low Low Dat Pro Fac Was Fac Ext Cet Arc Hub Fac Was Fac Upp Upp War Pro Res Qua Sec Res Tes Acc Hostile Shots Fired 1433 | . 40 24 142 46 . 34 100 96 50 106 1 90 231 . 25 2 24 23 . 11 46 3 12 15 2 5 8 82 . . 23 3 . 14 11 . 48 1 14 8 . . 6 33 5 18 31 Missed 551 | . 10 10 40 7 . 17 32 22 22 32 . 30 99 . 17 1 11 12 . 6 23 1 9 4 . 1 3 39 . . 14 1 . 1 3 . 31 1 8 6 . . 3 8 1 9 17 Damage Taken 14010 | . 387 198 1181 731 . 245 1013 797 387 1162 24 1097 1323 . 106 . 226 155 . 71 550 41 15 329 38 187 104 763 . . 300 44 . 330 134 . 335 . 47 98 . 117 62 836 119 183 275 Core 1766 | . 28 . 139 94 . 47 70 72 35 92 . 77 80 . 26 . 30 46 . 38 34 . . 62 18 46 62 232 . . . 15 . 20 52 . . . . 34 . . 16 234 . 39 28 Absorbed by Shields 160 | . . . . . . . . 64 . . . . . . . . . . . . . . . . . . . . . . 53 43 . . . . . . . . . . . . . . . Redirected to Shielding 386 | . . . 1 18 . . . . . . . . . . . . . . . . . . . 82 . . . 68 . . . . . . 10 . 52 . . . . 35 . 49 53 . 18 Ignored by Resistances 120 | . . . . . . . . 38 . . . . 82 . . . . . . . . . . . . . . . . . . . . . . . . . . . . . . . . . . Regen/Repaired (Parts) 3345 | . 41 . . . . . 79 . 150 . . 161 102 . 247 . 9 231 . . 22 . 107 . . . . 39 . 36 . . . . 331 . 104 . . 14 . 387 46 862 . 208 169 Core Remaining (%) 75 | 100 . 88 . . . 30 . . . . . 37 . . . . . . . 68 . . . . . . 73 . . . . . . 73 . . . . . . 92 . . 76 . 97 98 Volleys Fired 2145 | 17 88 25 136 44 . 39 92 145 51 102 4 110 80 4 37 30 168 . 79 123 11 . 9 39 136 . 11 50 . 28 2 11 . 12 25 . 56 70 70 75 45 11 11 31 2 13 53 Largest 2 | 2 2 2 2 2 . 2 2 2 2 2 2 2 2 1 1 1 1 . 1 1 1 . 1 1 1 . 1 1 . 1 1 1 . 1 1 . 1 2 1 1 2 1 1 1 1 1 1 Hottest 116 | 70 100 46 95 79 . 81 116 80 86 100 86 100 100 55 81 98 98 . 60 60 60 . 60 60 60 . 60 60 . 60 46 46 . 60 60 . 60 95 60 46 95 113 60 113 113 113 113 Shots Fired 2877 | 34 154 50 261 72 . 75 177 208 98 168 8 201 152 4 37 30 168 . 80 123 11 . 9 39 136 . 11 50 . 28 2 11 . 12 25 . 57 71 70 75 49 11 11 31 2 13 53 Gun 2384 | 34 152 50 194 53 . 75 156 205 91 165 8 186 141 4 34 24 156 . 80 123 8 . 6 36 134 . 4 28 . 20 . . . 9 13 . 32 63 53 . 40 4 3 . . . . Cannon 177 | . . . 67 7 . . 19 . 4 . . 6 4 . . 6 10 . . . . . . . . . . . . . . . . . . . . . . . . 2 . 14 2 5 31 Launcher 312 | . . . . 12 . . 2 3 3 3 . 9 7 . 3 . 2 . . . 3 . 3 3 2 . 7 22 . 8 2 11 . 1 12 . 25 8 17 75 9 5 8 17 . 8 22 Special 4 | . 2 . . . . . . . . . . . . . . . . . . . . . . . . . . . . . . . . 2 . . . . . . . . . . . . . Kinetic 1466 | 17 152 50 209 36 . 39 123 66 52 87 4 89 68 . 28 24 23 . 63 75 5 . . 32 114 . . 8 . . . . . . 3 . 3 24 49 . 23 . . . . . . Thermal 727 | 17 2 . 40 24 . 36 52 139 43 78 4 103 77 . 5 6 30 . 17 . . . . . . . . . . . . . . . . . . . . . . 2 . 14 2 5 31 Explosive 309 | . . . . 12 . . 2 . 3 3 . 9 7 . 3 . 2 . . . 3 . 3 3 2 . 7 22 . 8 2 11 . 1 12 . 25 8 17 75 9 5 8 17 . 8 22 Electromagnetic 133 | . . . 12 . . . . 3 . . . . . 4 1 . 113 . . . . . . . . . . . . . . . . . . . . . . . . . . . . . . Phasic 240 | . . . . . . . . . . . . . . . . . . . . 48 3 . 6 4 20 . 4 20 . 20 . . . 9 10 . 29 39 4 . 17 4 3 . . . . Robot Hit Streak 37 | 16 13 10 18 10 . 7 15 17 8 37 8 17 36 4 9 7 9 . 7 9 . . . 6 7 . . 7 . . . . . 1 . . 4 12 4 6 10 . . 2 . . 3 Robot Miss Streak 11 | 4 4 5 11 6 . 2 4 4 4 2 . 2 3 1 3 4 6 . 3 4 2 . . 4 5 . . 2 . . . . . 1 . . . 2 2 . 4 . . 2 . . 1 Penetration Max 1 | . . . . . . . . . . . . . . . 1 1 . . . 1 . . . 1 1 . . . . . . . . . . . . 1 . . . . . . . . . Secondary Targets 15 | . . 1 1 . . 1 1 4 1 1 1 2 2 . . . . . . . . . . . . . . . . . . . . . . . . . . . . . . . . . . Max Gunslinging Chain 1 | . . 1 1 . . 1 1 1 1 1 1 1 1 . . . . . . . . . . . . . . . . . . . . . . . . . . . . . . . . . . Shots Hit Robots 1857 | 23 80 33 154 34 5 42 108 84 53 115 7 149 140 5 33 24 68 2 14 63 41 . 13 31 52 2 8 54 1 27 49 . 5 24 23 . 41 27 34 13 18 9 29 29 38 9 44 Core Hits 1621 | 9 31 15 79 48 . 19 49 41 24 46 6 92 64 . 24 15 42 1 18 31 24 . 26 18 25 . 9 177 1 28 13 37 2 18 30 . 55 28 34 256 23 12 17 39 5 17 73 Critical Kills 40 | . 1 . . . . . . 2 . 2 . . . . 4 1 1 . 5 3 2 . . 5 7 . . . . . . . . . . . 1 3 2 . 1 . . . . . . Critical Parts Destroyed 41 | . 1 . . . . 1 . . 1 . . . . . 4 1 . . 3 9 . . . 3 8 . . . . . . . . . . . 1 5 3 . 1 . . . . . . Critical Strikes 169 | 2 2 . 7 4 . 5 3 2 2 13 1 11 2 . 9 2 1 . 12 14 9 . . 9 15 . . 3 . 2 6 . 1 2 3 . 4 9 5 . 4 1 . 2 . 1 1 Burn 44 | 2 . . 5 4 . 4 3 . 1 10 1 11 2 . 1 . . . . . . . . . . . . . . . . . . . . . . . . . . . . . . . . Destroy 90 | . 2 . 1 . . 1 . 2 1 3 . . . . 8 2 1 . 12 12 2 . . 8 15 . . . . . . . . . . . 2 9 5 . 4 . . . . . . Blast 1 | . . . 1 . . . . . . . . . . . . . . . . . . . . . . . . . . . . . . . . . . . . . . . . . . . . Sever 8 | . . . . . . . . . . . . . . . . . . . . . . . . . . . . . . . . . . . 2 . 1 . . . . 1 . 2 . 1 1 Impale 24 | . . . . . . . . . . . . . . . . . . . . 1 7 . . 1 . . . 2 . 2 6 . 1 2 1 . 1 . . . . . . . . . . Intensify 2 | . . . . . . . . . . . . . . . . . . . . 1 . . . . . . . 1 . . . . . . . . . . . . . . . . . . . Melee Attacks 1546 | . . . 3 3 5 . 9 . . 4 . 7 60 3 46 29 32 4 8 24 111 5 128 32 27 20 20 151 1 81 87 . 6 57 76 . 116 11 13 11 12 35 61 64 46 27 111 Impact . | . . . . . . . . . . . . . . . . . . . . . . . . . . . . . . . . . . . . . . . . . . . . . . . . Slashing 578 | . . . 2 3 . . 9 . . . . 7 18 . . . . 1 . . 11 . 21 7 . 3 3 7 . . . . . . 49 . 109 8 12 . 6 34 48 63 23 27 107 Piercing 853 | . . . . . . . . . . . . . 36 . 46 27 30 3 8 24 98 5 107 25 27 17 17 142 1 78 60 . 3 56 21 . 4 . . . 6 . 7 . 1 . 4 Sneak Attacks 307 | . . . 1 2 5 . 1 . . 4 . . 14 3 5 6 4 1 1 5 13 . 8 8 . 2 5 23 1 13 33 . 3 8 12 . 14 7 6 11 2 6 16 9 29 4 22 Combat Hostiles 32 | . . . . . . . . . . . . . . . 1 . 3 . 1 2 1 . . 1 . . . . . 1 7 . . 1 2 . 1 2 . . 2 1 . 2 . 1 3 Follow-up Attacks 18 | . . . . . . . . . . . . . . . . . . . . . 2 . . 1 . 1 1 5 . . 1 . . 4 . . . . . . . . . . . . 3 Damage Inflicted 117182 | 293 1258 518 3031 1743 . 736 2272 1809 1254 2294 125 4518 3780 1 1253 809 1745 135 549 1477 3625 . 3170 1160 789 157 902 8839 80 2713 1838 1177 125 1482 2987 . 6963 2884 2324 18707 2131 1725 3112 5550 2099 2324 10719 Guns 19890 | 293 1258 518 2054 501 . 736 1601 1606 909 1870 125 2493 2070 1 284 87 898 . 277 850 14 . . 159 552 . . 44 . . . . . . . . 15 260 146 . 269 . . . . . . Cannons 1639 | . . . 881 61 . . 388 . 75 . . 31 . . . . . . . . . . . . . . . . . . . . . . . . . . . . . . . 85 . . 118 Explosions 61238 | . . . 96 1038 . . 223 203 270 424 . 1994 698 . 312 . 361 . . . 1573 . 2294 388 199 . 413 6319 . 1380 479 1177 . 242 1807 . 4211 2098 1536 18707 1648 982 1108 2701 . 1215 5142 Melee 34410 | . . . . 143 . . 55 . . . . . 1012 . 657 722 486 135 272 627 2038 . 876 613 38 157 489 2476 80 1333 1359 . 125 1240 1180 . 2737 526 642 . 214 743 2004 2764 2099 1109 5459 Ramming 5 | . . . . . . . 5 . . . . . . . . . . . . . . . . . . . . . . . . . . . . . . . . . . . . . . . . Kinetic 12193 | 133 1258 518 2262 266 . 358 1411 778 520 779 54 1083 908 . 182 87 102 . 277 322 14 . . 159 420 . . 8 . . . . . . . . 15 95 146 . 38 . . . . . . Thermal 8517 | 160 . . 571 296 . 378 578 828 464 1091 71 1441 1162 . 92 . 393 . . . . . . . . . . 365 . . . . . . 304 . 120 . . . . . . 85 . . 118 Explosive 58186 | . . . . 1038 . . 223 . 270 424 . 1994 516 . 312 . 178 . . . 1573 . 2294 388 199 . 413 4597 . 1380 479 1177 . . 1503 . 4091 2098 1536 18707 1648 982 1108 2701 . 1215 5142 Electromagnetic 2779 | . . . 198 . . . . 203 . . . . 182 1 10 . 586 . . . . . . . . . . 1357 . . . . . 242 . . . . . . . . . . . . . Impact . | . . . . . . . . . . . . . . . . . . . . . . . . . . . . . . . . . . . . . . . . . . . . . . . . Slashing 19798 | . . . . 143 . . 55 . . . . . 573 . . . . . . . 85 . . . . . 47 400 . . . . . . 607 . 2494 526 642 . 109 743 1943 2764 2099 1109 5459 Piercing 14612 | . . . . . . . . . . . . . 439 . 657 722 486 135 272 627 1953 . 876 613 38 157 442 2076 80 1333 1359 . 125 1240 573 . 243 . . . 105 . 61 . . . . Phasic 1092 | . . . . . . . . . . . . . . . . . . . . 528 . . . . 132 . . 36 . . . . . . . . . 165 . . 231 . . . . . . Highest Corruption 10 | . . . 1 1 1 1 3 4 4 4 4 6 2 . . . . 10 2 2 1 10 10 . . . 3 1 1 1 1 1 1 . . 8 8 . . . . . . . . . . Average Corruption 2 | . . . 1 1 1 1 3 3 4 4 4 5 1 . . . . 2 2 2 1 7 2 . . . 2 1 1 1 1 1 1 . . 8 1 . . . . . . . . . . Corruption Purged 23 | . . . . . . . . . . . . . 2 . . . . . . . . . 10 . . . . 1 . 1 . . 1 . . . 8 . . . . . . . . . . Corruption Blocked 5 | . . . . . . . . . . . . . . . . . . . . . . . . . . . . . 5 . . . . . . . . . . . . . . . . . . Effects 327 | . . . 9 8 5 7 46 27 22 40 5 47 7 . . . . . 26 1 4 3 19 . . . 8 8 1 6 10 2 . . . 1 15 . . . . . . . . . . Message Errors 76 | . . . 2 2 1 2 9 7 7 6 3 8 2 . . . . . 8 1 3 . 5 . . . . 1 . 3 3 1 . . . . 2 . . . . . . . . . . Matter Fused 77 | . . . 3 1 3 . 8 5 2 16 1 13 1 . . . . . 7 . . . 3 . . . 2 4 . 1 2 . . . . . 5 . . . . . . . . . . Heat Flow Errors 35 | . . . . 2 . . 7 5 2 1 . 6 . . . . . . 1 . . . 2 . . . 3 1 . 1 2 . . . . . 2 . . . . . . . . . . Energy Discharges 38 | . . . 1 . 1 1 7 3 3 8 . 2 . . . . . . 2 . 1 1 2 . . . 1 . . 1 2 . . . . . 2 . . . . . . . . . . Parts Rejected 2 | . . . . . . . . . . . . 1 . . . . . . . . . . . . . . . . 1 . . . . . . . . . . . . . . . . . . Parts Fused 9 | . . . . 1 . . . . . 5 . 1 . . . . . . 2 . . . . . . . . . . . . . . . . . . . . . . . . . . . . Data Loss (minor) 41 | . . . 1 1 . 2 9 4 3 1 . 5 3 . . . . . 4 . . . 3 . . . 1 1 . . 1 . . . . . 2 . . . . . . . . . . Data Loss (major) 18 | . . . 1 1 . 2 1 1 3 1 . 1 . . . . . . 1 . . . 4 . . . 1 . . . . . . . . . 1 . . . . . . . . . . Misfires 11 | . . . 1 . . . 2 1 . 1 . 4 . . . . . . 1 . . . . . . . . . . . . . . . . . 1 . . . . . . . . . . Alerts 11 | . . . . . . . 3 . 1 . 1 2 1 . . . . . . . . . . . . . . 1 . . . 1 . . . 1 . . . . . . . . . . . Misdirections 2 | . . . . . . . . . . . . . . . . . . . . . . 2 . . . . . . . . . . . . . . . . . . . . . . . . . Weapon Failures 7 | . . . . . . . . 1 1 1 . 4 . . . . . . . . . . . . . . . . . . . . . . . . . . . . . . . . . . . Overload Shots . | . . . . . . . . . . . . . . . . . . . . . . . . . . . . . . . . . . . . . . . . . . . . . . . . Overflow Damage 10807 | . . . . 14 . . 15 . 17 20 . 43 157 . 116 170 13 41 . 116 705 . 290 261 . . 203 445 . 165 397 5 . 340 497 . 519 181 433 395 33 220 685 810 884 682 1935 Projectiles 4 | . . . . . . . . . . . . . . . . . . . . . . . . . . . . . . . . . . . . . . . . . . . . . . . 4 Explosions 2221 | . . . . 14 . . . . 17 20 . 43 3 . 14 . 13 . . . 221 . 238 16 . . . 133 . 47 12 5 . 10 137 . 196 23 52 395 33 97 61 133 . 78 210 Melee 8582 | . . . . . . . 15 . . . . . 154 . 102 170 . 41 . 116 484 . 52 245 . . 203 312 . 118 385 . . 330 360 . 323 158 381 . . 123 624 677 884 604 1721 Knockbacks 6 | . . . 3 1 . . 2 . . . . . . . . . . . . . . . . . . . . . . . . . . . . . . . . . . . . . . . . Impact . | . . . . . . . . . . . . . . . . . . . . . . . . . . . . . . . . . . . . . . . . . . . . . . . . Kinetic 6 | . . . 3 1 . . 2 . . . . . . . . . . . . . . . . . . . . . . . . . . . . . . . . . . . . . . . . Secondary . | . . . . . . . . . . . . . . . . . . . . . . . . . . . . . . . . . . . . . . . . . . . . . . . . Self-Inflicted Damage 235 | . . . 36 . . . . . 41 . . 26 . . . . . . . . 111 . . . . . . . . . . . . 21 . . . . . . . . . . . . . Shots 6 | . . . 1 . . . . . 1 . . 1 . . . . . . . . 2 . . . . . . . . . . . . 1 . . . . . . . . . . . . . Rammed 1 | . . . . . . . 1 . . . . . . . . . . . . . . . . . . . . . . . . . . . . . . . . . . . . . . . . Targets Rammed 1 | . . . . . . . 1 . . . . . . . . . . . . . . . . . . . . . . . . . . . . . . . . . . . . . . . . Kicked . | . . . . . . . . . . . . . . . . . . . . . . . . . . . . . . . . . . . . . . . . . . . . . . . . Crushed . | . . . . . . . . . . . . . . . . . . . . . . . . . . . . . . . . . . . . . . . . . . . . . . . . Highest Temperature 315 | 36 96 114 261 250 . 93 260 202 260 315 21 225 168 . 148 108 192 50 274 112 104 45 231 20 30 . 284 287 . 163 263 85 3 72 28 . 209 125 60 25 60 70 5 260 48 92 18 Average Temperature 29 | 15 22 29 52 35 . 17 33 27 32 28 11 32 24 . 55 52 27 27 63 28 23 20 25 8 8 . 99 43 . 35 39 28 2 15 8 . 37 19 5 8 16 7 5 50 24 33 8 Received Heat Transfer 3706 | . 240 126 249 56 . 63 234 218 108 540 9 468 597 . 42 . 72 60 . . 75 12 . 48 . . . 63 . . 89 . . 81 21 . 33 . . . . . 37 129 . 9 27 Effects 1 | . . . . . . . . . . . . . . . . . . . . . . . . . . . . . . . . . . . . . . . . . . . . 1 . . . Interference 1 | . . . . . . . . . . . . . . . . . . . . . . . . . . . . . . . . . . . . . . . . . . . . 1 . . . Siege Activations . | . . . . . . . . . . . . . . . . . . . . . . . . . . . . . . . . . . . . . . . . . . . . . . . . Robots Corrupted 1 | . . . . . . . . . . . . . . . . . . . . . . . . . . . . 1 . . . . . . . . . . . . . . . . . . . Combat Hostiles . | . . . . . . . . . . . . . . . . . . . . . . . . . . . . . . . . . . . . . . . . . . . . . . . . Parts Fried 11 | . . . 3 . . . . . . . . . . . . . 4 . . . . . . . . . . 2 . . . . . 1 . . 1 . . . . . . . . . . Impact Corruptions . | . . . . . . . . . . . . . . . . . . . . . . . . . . . . . . . . . . . . . . . . . . . . . . . . Robots Melted 1 | . . . . . . . . . . . . 1 . . . . . . . . . . . . . . . . . . . . . . . . . . . . . . . . . . . Combat Hostiles . | . . . . . . . . . . . . . . . . . . . . . . . . . . . . . . . . . . . . . . . . . . . . . . . . Parts Melted 41 | 2 . . 5 4 . 4 2 2 1 3 1 7 2 . 1 . . . . 2 . . . 3 1 . . . . . . . . . . . . . . . . 1 . . . . . Heat Transferred 18917 | 629 . . 1519 925 . 1110 1369 1535 962 3011 222 3779 2516 . 222 . 533 . . . . . . . . . . 200 . . . . . . 150 . 50 . . . . . . 74 . . 111 Parts Sabotaged . | . . . . . . . . . . . . . . . . . . . . . . . . . . . . . . . . . . . . . . . . . . . . . . . . Parts Stolen . | . . . . . . . . . . . . . . . . . . . . . . . . . . . . . . . . . . . . . . . . . . . . . . . . Parts Stripped . | . . . . . . . . . . . . . . . . . . . . . . . . . . . . . . . . . . . . . . . . . . . . . . . . Power Chain Reactions 5 | . . . 2 . . . . . . . . . . . . . 3 . . . . . . . . . . . . . . . . . . . . . . . . . . . . . . Alert | -11 -10 -10 -9 -9 -9 -8 -8 -8 -8 -8 -8 -8 -7 -7 -7 -7 -7 -7 -7 -6 -6 -6 -6 -6 -6 -6 -5 -5 -5 -5 -5 -5 -5 -5 -4 -4 -4 -4 -4 -4 -3 -3 -3 -3 -2 -2 -1 ------- Run | Yrd Mat Min Mat Min Exi Min Mat Gar Mat Gar Mat Sto Fac Was Fac Low Low Zio Dee Pro Fac Was Fac Low Low Dat Pro Fac Was Fac Ext Cet Arc Hub Fac Was Fac Upp Upp War Pro Res Qua Sec Res Tes Acc Peak Influence 1602 | 40 149 116 876 467 . 241 251 1517 1040 1543 1051 1602 1264 487 760 . . . . . 676 211 573 . . . . 1258 460 609 1026 883 415 908 1046 255 773 . . . . 245 228 456 268 512 1033 Initial 752 | . 26 31 3 331 . . 2 124 739 546 752 443 728 442 340 . . . . . 519 154 147 . . . . . 440 322 156 529 353 137 444 210 178 . . . . 27 18 59 24 49 37 Average 433 | 19 57 56 348 269 . 73 131 802 849 1151 890 1106 949 472 619 . . . . . 463 171 277 . . . . 626 450 276 739 731 368 348 490 237 334 . . . . 101 90 143 163 171 260 Maximum Alert Level 5 | . . . 3 2 . 1 1 4 3 4 3 5 4 2 3 . . . . . 2 1 2 . . . . 4 2 2 3 3 2 3 3 1 3 . . . . 1 1 2 1 2 3 Low Security (%) 37 | 100 100 100 25 37 . 98 90 4 . . . . . . . . . . . . . 73 42 . . . . 25 . 27 1 . . 22 16 . 5 . . . . 93 96 75 59 66 55 Level 1 19 | . . . 42 35 . 1 9 11 . . . . . . 2 . . . . . 36 26 18 . . . . 1 . 59 4 . 97 53 20 100 69 . . . . 6 3 23 40 22 20 Level 2 18 | . . . 20 27 . . . 26 . 10 . 11 . 100 82 . . . . . 63 . 38 . . . . 16 100 12 30 26 2 9 46 . 23 . . . . . . 1 . 11 13 Level 3 18 | . . . 11 . . . . 24 100 35 100 32 91 . 15 . . . . . . . . . . . . 55 . . 63 73 . 14 16 . 1 . . . . . . . . . 9 Level 4 5 | . . . . . . . . 32 . 53 . 49 8 . . . . . . . . . . . . . . 1 . . . . . . . . . . . . . . . . . . . Level 5 . | . . . . . . . . . . . . 5 . . . . . . . . . . . . . . . . . . . . . . . . . . . . . . . . . . . High Security . | . . . . . . . . . . . . . . . . . . . . . . . . . . . . . . . . . . . . . . . . . . . . . . . . Max Security . | . . . . . . . . . . . . . . . . . . . . . . . . . . . . . . . . . . . . . . . . . . . . . . . . Squads Dispatched 163 | . 2 . 3 . . . 4 . 3 . . 8 18 . 6 . . . . . 11 . 5 . . . . 16 . 8 1 . . 6 17 . 15 . . . . 8 5 6 3 5 13 Investigation 68 | . 2 . 1 . . . 3 . 1 . . . 4 . 3 . . . . . 3 . 3 . . . . 7 . 5 . . . 4 8 . 8 . . . . 7 1 1 2 1 4 Extermination 28 | . . . . . . . . . . . . . 3 . . . . . . . 2 . 1 . . . . 2 . 1 . . . 1 5 . 3 . . . . . 3 3 . 1 3 Reinforcement 36 | . . . 2 . . . . . 1 . . 2 3 . 2 . . . . . 3 . 1 . . . . 4 . 2 1 . . 1 2 . 4 . . . . 1 1 1 1 2 2 Assault 17 | . . . . . . . . . . . . 6 2 . 1 . . . . . . . . . . . . 3 . . . . . . 2 . . . . . . . . 1 . 1 1 Garrison 14 | . . . . . . . 1 . 1 . . . 6 . . . . . . . 3 . . . . . . . . . . . . . . . . . . . . . . . . . 3 Intercept . | . . . . . . . . . . . . . . . . . . . . . . . . . . . . . . . . . . . . . . . . . . . . . . . . Searches Triggered 1 | . . . . . . . . . . . . . . . . . . . . . 1 . . . . . . . . . . . . . . . . . . . . . . . . . . Construction Impeded 12 | . . . . . . . . . . . . . 1 . 2 . . . . . . . . . . . . 1 . 1 1 . . 1 . . 2 . . . . . . 1 . 1 1 Haulers Reinforced 13 | . . . . . . . . . . . . . 1 . . . . . . . 2 . 1 . . . . 2 . 1 . . . . 1 . 2 . . . . . 1 . 1 . 1 Active Scanning Responses . | . . . . . . . . . . . . . . . . . . . . . . . . . . . . . . . . . . . . . . . . . . . . . . . . Cargo Convoy Interrupts 1 | . . . . . . . . . . . . . . . . . . . . . . . . . . . . 1 . . . . . . . . . . . . . . . . . . . Stealth | -11 -10 -10 -9 -9 -9 -8 -8 -8 -8 -8 -8 -8 -7 -7 -7 -7 -7 -7 -7 -6 -6 -6 -6 -6 -6 -6 -5 -5 -5 -5 -5 -5 -5 -5 -4 -4 -4 -4 -4 -4 -3 -3 -3 -3 -2 -2 -1 --------- Run | Yrd Mat Min Mat Min Exi Min Mat Gar Mat Gar Mat Sto Fac Was Fac Low Low Zio Dee Pro Fac Was Fac Low Low Dat Pro Fac Was Fac Ext Cet Arc Hub Fac Was Fac Upp Upp War Pro Res Qua Sec Res Tes Acc Distress Signals 51 | . 2 . 3 . . . 3 . 1 . . 3 3 . . . . . . . 2 . 1 . . . . 4 . 4 1 1 . 1 3 . 3 . . . . 4 . 1 7 4 . Communications Jammed 68 | . . . . . . . . . . . . . . . . . . . . . . . . . . . . 27 . . . . . 13 2 . 23 . . . . 1 . 1 . 1 . Distress Signals 68 | . . . . . . . . . . . . . . . . . . . . . . . . . . . . 27 . . . . . 13 2 . 23 . . . . 1 . 1 . 1 . Times Spotted 859 | . 18 7 51 25 . 15 34 35 24 27 8 62 33 6 19 4 75 11 . 11 34 7 11 5 10 4 2 30 4 15 22 10 . 10 18 5 48 3 5 58 5 7 15 17 20 8 21 Peak Tracking Total 18 | . 3 3 5 18 . 4 5 4 5 5 2 11 5 6 4 3 9 13 3 5 9 5 5 7 7 4 2 8 5 6 4 5 . 2 5 5 18 3 5 17 4 6 5 5 4 5 7 Tactical Retreats 251 | . 1 2 7 . . . 1 2 4 . . 3 3 . 1 1 58 1 33 31 4 . 5 11 43 . . 6 . 1 1 . . . 2 . 7 4 7 2 2 . 1 3 2 . 2 Traps | -11 -10 -10 -9 -9 -9 -8 -8 -8 -8 -8 -8 -8 -7 -7 -7 -7 -7 -7 -7 -6 -6 -6 -6 -6 -6 -6 -5 -5 -5 -5 -5 -5 -5 -5 -4 -4 -4 -4 -4 -4 -3 -3 -3 -3 -2 -2 -1 ------- Run | Yrd Mat Min Mat Min Exi Min Mat Gar Mat Gar Mat Sto Fac Was Fac Low Low Zio Dee Pro Fac Was Fac Low Low Dat Pro Fac Was Fac Ext Cet Arc Hub Fac Was Fac Upp Upp War Pro Res Qua Sec Res Tes Acc Traps Triggered 31 | . . . 1 . . . 1 3 1 1 . . 2 . 2 . . . . . 5 . . . . . . 1 . 4 . . . . 2 . 5 . . . . 3 . . . . . Indirectly 3 | . . . . . . . . 3 . . . . . . . . . . . . . . . . . . . . . . . . . . . . . . . . . . . . . . . Trap Hack Attempts 403 | . . . 177 . . . . 1 . . . 59 38 . . . . . . . 2 . . . . . . 56 . 15 31 . . . 23 . . . . . . . 1 . . . . Triggered 4 | . . . . . . . . . . . . . 3 . . . . . . . . . . . . . . . . . 1 . . . . . . . . . . . . . . . . Disarmed 32 | . 21 . . . . . . 1 . . . 2 1 . . . . . . . . . . . . . . . . 1 1 . . . 1 . . . . . . . . 4 . . . Reprogrammed 120 | . . . 15 . . . . . . . . 3 5 . 4 . . . . . 1 . . . . . . 18 . 12 5 . . 9 26 . 1 . . . . . 7 8 . 6 . Reused 61 | . . . 5 . . . . . . . . . . . 1 . . . 3 4 1 . . 4 . . . 9 . 3 . . . 7 6 . 1 3 . . . . 1 12 . 1 . Traps Extracted 14 | . . . . . . . . . . . . . 3 . . . . . . . . . . . . . . 6 . 2 . . . 3 . . . . . . . . . . . . . Installed 35 | . . 1 3 . . . . . . . . . . . . . . . 3 4 . . . 4 . . . 3 . . . . . 3 . . . 6 . . . . . 8 . . . Triggered 77 | . . . 5 . . . . . . . . . . . 1 . 2 . . 6 1 . . 5 . . . 11 . 3 . . . 7 6 . 1 4 . 10 1 . 1 12 . 1 . Most Traps Carried 8 | . . 3 3 . . . . . . . . . 3 3 3 3 3 3 3 2 . . . 4 . . 4 6 6 8 8 8 8 8 8 8 8 8 8 8 8 8 8 8 . . . Machines | -11 -10 -10 -9 -9 -9 -8 -8 -8 -8 -8 -8 -8 -7 -7 -7 -7 -7 -7 -7 -6 -6 -6 -6 -6 -6 -6 -5 -5 -5 -5 -5 -5 -5 -5 -4 -4 -4 -4 -4 -4 -3 -3 -3 -3 -2 -2 -1 ---------- Run | Yrd Mat Min Mat Min Exi Min Mat Gar Mat Gar Mat Sto Fac Was Fac Low Low Zio Dee Pro Fac Was Fac Low Low Dat Pro Fac Was Fac Ext Cet Arc Hub Fac Was Fac Upp Upp War Pro Res Qua Sec Res Tes Acc Machines Disabled 188 | . 3 . 2 2 . 1 3 7 4 7 1 8 14 . 8 1 5 . 3 . 19 . 16 . 2 1 . 25 . 1 2 . . 6 18 . 9 . . 2 . . 3 9 . 5 1 Max in Single Turn 9 | . 1 . 1 1 . 1 1 2 1 1 . 2 4 . 1 1 1 . 1 . 4 . 5 . 1 1 . 9 . 1 1 . . 4 6 . 5 . . 2 . . 1 2 . 2 1 Garrison Access 32 | . . . . . . . . . . . . 1 2 . 2 . . . . . 1 . 3 . . . . 4 . 3 . . . 1 2 . 3 . . . . 3 1 1 3 . 2 Garrison Relay 9 | . . . . . . . . 4 . 5 . . . . . . . . . . . . . . . . . . . . . . . . . . . . . . . . . . . . . Phase Generator 1 | . . . . . . . . 1 . . . . . . . . . . . . . . . . . . . . . . . . . . . . . . . . . . . . . . . Network Hub 4 | . . . . . . . . . . . . . . . . . . . . . . . . . . . . . . . . . . 4 . . . . . . . . . . . . . Machines Repaired . | . . . . . . . . . . . . . . . . . . . . . . . . . . . . . . . . . . . . . . . . . . . . . . . . Machines Dismantled . | . . . . . . . . . . . . . . . . . . . . . . . . . . . . . . . . . . . . . . . . . . . . . . . . Machines Sabotaged 1 | . . . . . . . . . . . . . . . . . . . . . . . . . . . . . . . . . . 1 . . . . . . . . . . . . . Overloaded Fab Kills . | . . . . . . . . . . . . . . . . . . . . . . . . . . . . . . . . . . . . . . . . . . . . . . . . Hacking | -11 -10 -10 -9 -9 -9 -8 -8 -8 -8 -8 -8 -8 -7 -7 -7 -7 -7 -7 -7 -6 -6 -6 -6 -6 -6 -6 -5 -5 -5 -5 -5 -5 -5 -5 -4 -4 -4 -4 -4 -4 -3 -3 -3 -3 -2 -2 -1 --------- Run | Yrd Mat Min Mat Min Exi Min Mat Gar Mat Gar Mat Sto Fac Was Fac Low Low Zio Dee Pro Fac Was Fac Low Low Dat Pro Fac Was Fac Ext Cet Arc Hub Fac Was Fac Upp Upp War Pro Res Qua Sec Res Tes Acc Machines Accessed 402 | . 10 . 9 . . 1 13 4 8 5 4 10 28 . 27 1 . . . . 24 . 20 2 2 4 . 38 . 20 10 1 1 11 32 . 24 1 1 2 1 18 16 20 8 8 18 Terminals 223 | . 8 . 7 . . 1 7 4 5 5 3 6 12 . 13 . . . . . 15 . 8 . . . . 16 . 12 10 1 . 10 13 . 11 . . . 1 3 13 18 4 5 12 Fabricators 40 | . . . . . . . . . . . . . 3 . 5 . . . . . 1 . 4 . . . . 6 . 2 . . . . 4 . 5 . . . . 4 . . 2 . 4 Repair Stations 36 | . 1 . . . . . 1 . 1 . . 2 3 . 4 . . . . . 3 . 4 . . . . 5 . 1 . . . . 5 . 2 . . . . 2 . 1 . 1 . Recycling Units 34 | . 1 . 1 . . . 2 . 1 . 1 1 4 . 2 . . . . . 2 . 1 . . . . 5 . 2 . . . . 6 . 2 . . . . 2 . . 1 . . Scanalyzers 22 | . . . 1 . . . 2 . . . . . 4 . 1 . . . . . 2 . . . . . . 2 . . . . . . 1 . 1 . . . . 4 2 1 . 1 . Garrison Access 33 | . . . . . . . 1 . 1 . . 1 2 . 2 . . . . . 1 . 3 . . . . 4 . 3 . . . 1 3 . 3 . . . . 3 1 . 1 1 2 Total Hacks 1682 | . 47 . 30 . . 3 78 7 32 9 10 32 77 . 72 5 . . . . 71 . 56 2 8 31 . 111 . 50 13 2 25 39 208 . 140 1 1 5 1 103 78 126 50 61 98 Successful 1105 | . 27 . 17 . . 1 40 2 23 3 4 21 43 . 47 5 . . . . 38 . 39 2 8 31 . 61 . 33 10 1 25 23 127 . 84 1 1 5 1 80 49 90 47 45 71 Failed 571 | . 19 . 13 . . 2 37 5 9 6 6 11 34 . 25 . . . . . 33 . 17 . . . . 50 . 17 3 1 . 16 81 . 56 . . . . 22 28 35 3 15 27 Catastrophic 68 | . 1 . 1 . . . 3 2 2 1 1 1 4 . 1 . . . . . 5 . . . . . . 6 . 2 2 . . 1 19 . 5 . . . . . 5 1 1 . 4 Database Lockouts 6 | . 1 . . . . . 1 . . . . . . . . . . . . . . . . . . . . . . . . . . . . . . . . . . 1 1 1 . 1 . Manual 757 | . 20 . 17 . . 3 39 . 12 2 2 11 22 . 20 . . 5 . . 34 . 19 . . . . 48 . 23 4 1 . 24 117 . 73 . . 1 . 36 38 63 29 35 59 Terminals 1006 | . 38 . 21 . . 3 34 7 16 9 8 18 35 . 34 . . . . . 47 . 25 . . . . 63 . 34 13 2 . 37 113 . 85 . . . 1 33 67 111 31 51 70 Fabricators 165 | . . . . . . . . . . . . . 7 . 11 . . . . . 3 . 14 . . . . 14 . 4 . . . . 24 . 27 . . . . 23 . . 13 . 25 Repair Stations 141 | . 4 . . . . . 7 . 4 . . 9 9 . 12 . . . . . 7 . 9 . . . . 11 . 2 . . . . 32 . 8 . . . . 17 . 6 . 4 . Recycling Units 133 | . 5 . 4 . . . 14 . 8 . 2 2 13 . 4 . . . . . 6 . 2 . . . . 14 . 6 . . . . 27 . 10 . . . . 11 . . 5 . . Scanalyzers 93 | . . . 5 . . . 16 . . . . . 9 . 7 . . . . . 7 . . . . . . 4 . . . . . . 6 . 4 . . . . 15 10 9 . 1 . Garrison Access 66 | . . . . . . . 7 . 4 . . 3 4 . 4 . . . . . 1 . 6 . . . . 5 . 4 . . . 2 6 . 6 . . . . 4 1 . 1 5 3 Terminal Hacks 500 | . 15 . 6 . . 1 9 2 9 2 4 6 13 . 12 5 . . . . 19 . 12 2 8 31 . 23 . 14 8 1 25 12 39 . 30 1 1 5 1 17 29 54 18 27 39 Record 51 | . . . . . . . . . . . . . . . . 5 . . . . . . . . 7 11 . . . . . . 25 . . . . . . . 1 . 2 . . . . Part Schematic 61 | . . . . . . . . . . . . . 2 . 1 . . . . . 2 . 1 . . 12 . 2 . 1 . . . 2 2 . 1 . . . . 2 3 10 5 9 6 Robot Schematic 8 | . . . . . . . . . . . . . . . 1 . . . . . . . . . . 5 . . . . . . . . . . . . . . . . 1 . 1 . . Robot Analysis 31 | . 4 . . . . 1 3 . 1 . . 1 3 . . . . . . . . . . . . . . 1 . . . . . . 5 . 1 . . . . 1 2 4 . 1 3 Prototype ID Bank 45 | . 1 . 2 . . . 2 . 2 . . 1 1 . 2 . . . . . 1 . 1 . . 3 . 1 . . . . . . 3 . 1 . . 4 . 1 5 5 2 4 3 Open Door 22 | . . . . . . . . . . 1 . 1 . . . . . . . . . . . 2 1 . . . . . 8 1 . . . . . 1 1 1 . . 1 3 . . 1 Level Access Points 8 | . . . . . . . . . . . . . . . . . . . . . . . . . . . . 1 . . . . . . 1 . 1 . . . . 1 . 1 1 1 1 Branch Access Points 9 | . 1 . . . . . . . . . . . . . 1 . . . . . . . 1 . . . . 1 . . . . . . 1 . 1 . . . . 1 . . 1 . 1 Emergency Access Points 6 | . . . . . . . . 1 . 1 . . . . 1 . . . . . . . . . . . . . . . . . . . . . . . . . . 1 . . 1 . 1 Machine Index 7 | . . . . . . . . . . . . . . . 1 . . . . . . . . . . . . 1 . . . . . 1 1 . 1 . . . . . . 1 1 . . Terminal Index 11 | . 1 . 1 . . . . . 1 . 1 1 1 . . . . . . . 1 . 1 . . . . . . . . . . . . . . . . . . . 1 . . 1 1 Fabricator Index 1 | . . . . . . . . . . . . . . . . . . . . . . . . . . . . . . 1 . . . . . . . . . . . . . . . . . Recycling Unit Index 1 | . . . . . . . . . . . . . . . . . . . . . . . . . . . . . . . . . . . . . . . . . . . . . . . 1 Scanalyzer Index 2 | . . . . . . . . . . . . . . . . . . . . . 1 . . . . . . . . . . . . . . . . . . . . . . . . . 1 Garrison Index 3 | . . . . . . . . . . . . . . . . . . . . . 1 . 1 . . . . . . . . . . . . . . . . . . . . . . . 1 Alert Level 19 | . . . . . . . . . 1 . . . . . . . . . . . 1 . . . . . . 1 . 1 . . . . 1 . 4 . . . . 2 2 5 . . 1 Unreport Threat 39 | . . . . . . . . . 1 . . . 1 . 2 . . . . . 3 . 1 . . . . 4 . 3 . . . . 7 . 5 . . . . 1 1 6 . 2 2 Locate Traps 42 | . 1 . 1 . . . 2 . 2 . 1 2 1 . 1 . . . . . 4 . 2 . . . . . . 2 . . . 3 4 . 3 . . . . 1 2 4 1 2 3 Disarm Traps 7 | . 5 . . . . . . . . . . . . . . . . . . . . . . . . . . . . . . . . . . . . . . . . . 1 1 . . . Reprogram Traps 17 | . . . . . . . . . . . . . . . 1 . . . . . . . . . . . . 2 . 1 . . . 2 5 . 1 . . . . . 2 2 . 1 . Dispatch Records 5 | . . . . . . . . . . . . . . . . . . . . . . . . . . . . . . . . . . 1 . . . . . . . 1 . 2 1 . . Surveillance Status 2 | . . . . . . . . . . . . . . . . . . . . . . . . . . . . . . . . . . . . . . . . . . . 1 . . . 1 Patrol Status 1 | . . . . . . . . . . . . . . . . . . . . . . . . . . . . . . . . . . . . . . . . . . . . . . 1 . Transport Status 1 | . . . . . . . . . . . . . . . . . . . . . . . . . . . . 1 . . . . . . . . . . . . . . . . . . . Recall Investigation 9 | . . . . . . . . . . . . . . . . . . . . . . . 1 . . . . . . . . . . . . . 2 . . . . 2 1 1 . . 2 Recall Extermination 17 | . . . . . . . . . . . . . 2 . . . . . . . 1 . . . . . . . . 1 . . . 1 2 . 2 . . . . . 2 3 . . 3 Recall Reinforcements 11 | . . . . . . . . . . . . . . . . . . . . . 2 . . . . . . 1 . . . . . . 2 . 3 . . . . . . 1 1 1 . Recall Assault 5 | . . . . . . . . . . . . . . . . . . . . . . . . . . . . 2 . . . . . . 2 . . . . . . . . 1 . . . Hauler Manifests 26 | . 1 . 1 . . . 1 . 1 . 1 . 1 . 1 . . . . . 1 . 1 . . . . 3 . 2 . . . 1 1 . 2 . . . . 1 1 2 1 1 2 Registered Components 15 | . 1 . 1 . . . 1 . . . 1 . . . . . . . . . 1 . 1 . . . . 1 . 1 . . . . 1 . 1 . . . . 1 . 1 1 1 1 Registered Prototypes 12 | . . . . . . . . . . . . . 1 . . . . . . . . . 1 . . . . 1 . 1 . . . . 1 . 1 . . . . 1 1 1 1 1 1 Zone Layout 4 | . . . . . . . . . . . . . . . . . . . . . . . . . . . . . . . . . . 1 . . . . . . . . . . . . 3 Security Stations 1 | . . . . . . . . 1 . . . . . . . . . . . . . . . . . . . . . . . . . . . . . . . . . . . . . . . Protovariant Controls 1 | . . . . . . . . . . . . . . . . . . . . . . . . . . . . . . . . . . . . . . . . . . . . . . 1 . Fabricator Hacks 81 | . . . . . . . . . . . . . 4 . 7 . . . . . 2 . 7 . . . . 10 . 4 . . . . 10 . 12 . . . . 10 . . 5 . 10 Network Status 13 | . . . . . . . . . . . . . 1 . 1 . . . . . . . 1 . . . . . . . . . . . 2 . 3 . . . . 2 . . 1 . 2 Load Schematic 34 | . . . . . . . . . . . . . 1 . 3 . . . . . 1 . 3 . . . . 5 . 2 . . . . 4 . 5 . . . . 4 . . 2 . 4 Build 34 | . . . . . . . . . . . . . 2 . 3 . . . . . 1 . 3 . . . . 5 . 2 . . . . 4 . 4 . . . . 4 . . 2 . 4 Repair Station Hacks 109 | . 3 . . . . . 4 . 4 . . 8 6 . 9 . . . . . 3 . 8 . . . . 7 . 2 . . . . 23 . 7 . . . . 15 . 6 . 4 . Scan Component 56 | . 2 . . . . . 2 . 2 . . 4 3 . 4 . . . . . 2 . 4 . . . . 4 . 1 . . . . 12 . 4 . . . . 7 . 3 . 2 . Repair 49 | . 1 . . . . . 2 . 2 . . 4 3 . 4 . . . . . 1 . 4 . . . . 2 . 1 . . . . 10 . 3 . . . . 7 . 3 . 2 . Refit 4 | . . . . . . . . . . . . . . . 1 . . . . . . . . . . . . 1 . . . . . . 1 . . . . . . 1 . . . . . Recycling Unit Hacks 28 | . 1 . 1 . . . 2 . 1 . . 1 3 . . . . . . . 2 . 1 . . . . 3 . 2 . . . . 6 . 2 . . . . 2 . . 1 . . Process 1 | . . . . . . . . . . . . . 1 . . . . . . . . . . . . . . . . . . . . . . . . . . . . . . . . . . Retrieve Matter 1 | . . . . . . . . . . . . . 1 . . . . . . . . . . . . . . . . . . . . . . . . . . . . . . . . . . Retrieve Components 26 | . 1 . 1 . . . 2 . 1 . . 1 1 . . . . . . . 2 . 1 . . . . 3 . 2 . . . . 6 . 2 . . . . 2 . . 1 . . Scanalyzer 80 | . . . 5 . . . 14 . . . . . 7 . 7 . . . . . 6 . . . . . . 3 . . . . . . 4 . 4 . . . . 15 9 6 . . . Insert Component 36 | . . . 2 . . . 6 . . . . . 4 . 3 . . . . . 3 . . . . . . 2 . . . . . . 2 . 2 . . . . 5 5 2 . . . Analyze 44 | . . . 3 . . . 8 . . . . . 3 . 4 . . . . . 3 . . . . . . 1 . . . . . . 2 . 2 . . . . 10 4 4 . . . Garrison Access Hacks 32 | . . . . . . . 1 . 1 . . 1 2 . 2 . . . . . 1 . 3 . . . . 4 . 3 . . . 1 2 . 3 . . . . 3 1 . 1 1 2 Unlock Access 3 | . . . . . . . 1 . 1 . . . . . . . . . . . . . . . . . . . . . . . . . . . . . . . . . . . . 1 . Seal Access 29 | . . . . . . . . . . . . 1 2 . 2 . . . . . 1 . 3 . . . . 4 . 3 . . . 1 2 . 3 . . . . 3 1 . 1 . 2 Unauthorized Hacks 273 | . 6 . 5 . . . 10 . 8 1 . 5 8 . 10 . . . . . 5 . 8 . . . . 11 . 8 2 . . 10 43 . 26 . . . . 18 10 24 22 13 20 Terminals 137 | . 5 . 4 . . . 3 . 2 1 . 4 3 . 6 . . . . . 3 . 4 . . . . 4 . 5 2 . . 10 15 . 8 . . . . 2 9 22 10 8 7 Track 19 | . 1 . . . . . . . . . . . . . . . . . . . . . . . . . . . . . . . . 3 . . 2 . . . . . 2 6 2 1 2 Assimilate 39 | . 1 . 1 . . . 2 . . . . 2 1 . 3 . . . . . 1 . 1 . . . . 1 . 3 . . . 1 7 . 1 . . . . . 3 5 2 2 2 Botnet 49 | . 2 . 2 . . . . . 1 1 . . 1 . 2 . . . . . 2 . 2 . . . . 2 . 1 1 . . 2 7 . 4 . . . . 1 3 7 3 3 2 Disrupt 6 | . . . . . . . . . . . . 1 . . . . . . . . . . . . . . . . . . . . . . . . . . . . . . . 3 1 1 . Operators 21 | . 1 . 1 . . . 1 . 1 . . 1 1 . 1 . . . . . . . 1 . . . . 1 . 1 1 . . 1 1 . 1 . . . . 1 1 1 2 1 1 Sabotage 3 | . . . . . . . . . . . . . . . . . . . . . . . . . . . . . . . . . . 3 . . . . . . . . . . . . . Fabricators 62 | . . . . . . . . . . . . . 2 . 3 . . . . . 1 . 4 . . . . 1 . . . . . . 9 . 10 . . . . 11 . . 8 . 13 Report 13 | . . . . . . . . . . . . . 1 . 1 . . . . . . . 1 . . . . . . . . . . . 2 . 1 . . . . 2 . . 2 . 3 Prioritize 22 | . . . . . . . . . . . . . . . 1 . . . . . 1 . 2 . . . . 1 . . . . . . 3 . 4 . . . . 4 . . 2 . 4 Liberate 16 | . . . . . . . . . . . . . . . . . . . . . . . . . . . . . . . . . . . 3 . 4 . . . . 3 . . 2 . 4 Haulers 11 | . . . . . . . . . . . . . 1 . 1 . . . . . . . 1 . . . . . . . . . . . 1 . 1 . . . . 2 . . 2 . 2 Repair Stations 2 | . . . . . . . . . . . . . . . 1 . . . . . . . . . . . . . . . . . . . 1 . . . . . . . . . . . . Mechanics 2 | . . . . . . . . . . . . . . . 1 . . . . . . . . . . . . . . . . . . . 1 . . . . . . . . . . . . Recycling Units 56 | . 1 . 1 . . . 3 . 4 . . 1 2 . . . . . . . 1 . . . . . . 6 . 3 . . . . 17 . 8 . . . . 5 . . 4 . . Monitor 9 | . . . . . . . . . 1 . . . . . . . . . . . . . . . . . . 1 . 1 . . . . 2 . 2 . . . . 1 . . 1 . . Reject 16 | . . . . . . . 1 . 1 . . . 1 . . . . . . . . . . . . . . 2 . 1 . . . . 6 . 2 . . . . 1 . . 1 . . Recyclers 15 | . . . 1 . . . . . 1 . . 1 1 . . . . . . . 1 . . . . . . 2 . 1 . . . . 3 . 2 . . . . 1 . . 1 . . Mask 14 | . . . . . . . 1 . 1 . . . . . . . . . . . . . . . . . . 1 . . . . . . 6 . 2 . . . . 2 . . 1 . . Tunnel 2 | . 1 . . . . . 1 . . . . . . . . . . . . . . . . . . . . . . . . . . . . . . . . . . . . . . . . Scanalyzers 5 | . . . . . . . . . . . . . 1 . . . . . . . . . . . . . . . . . . . . . . . . . . . . . 1 2 . 1 . Researchers 3 | . . . . . . . . . . . . . . . . . . . . . . . . . . . . . . . . . . . . . . . . . . . 1 1 . 1 . Extract 2 | . . . . . . . . . . . . . 1 . . . . . . . . . . . . . . . . . . . . . . . . . . . . . . 1 . . . Garrison Access 11 | . . . . . . . 4 . 2 . . . . . . . . . . . . . . . . . . . . . . . . . 1 . . . . . . . . . . 4 . Broadcast 1 | . . . . . . . . . . . . . . . . . . . . . . . . . . . . . . . . . . . . . . . . . . . . . . 1 . Decoy 2 | . . . . . . . 1 . . . . . . . . . . . . . . . . . . . . . . . . . . . . . . . . . . . . . . 1 . Redirect 1 | . . . . . . . . . . . . . . . . . . . . . . . . . . . . . . . . . . . 1 . . . . . . . . . . . . Reprogram 2 | . . . . . . . 1 . 1 . . . . . . . . . . . . . . . . . . . . . . . . . . . . . . . . . . . . . . Intercept 3 | . . . . . . . 1 . 1 . . . . . . . . . . . . . . . . . . . . . . . . . . . . . . . . . . . . 1 . Watchers 2 | . . . . . . . 1 . . . . . . . . . . . . . . . . . . . . . . . . . . . . . . . . . . . . . . 1 . Data Cores Recovered 6 | . . . . . . . 1 . . . 1 . . . . . . . . . . . . . . . . . . . . . . 1 1 . 1 . . . . . . . . . 1 Used . | . . . . . . . . . . . . . . . . . . . . . . . . . . . . . . . . . . . . . . . . . . . . . . . . Hacking Detections 311 | . 10 . 9 . . 1 12 4 6 5 4 8 24 . 24 . . . . . 23 . 16 . . . . 32 . 17 5 . . 9 23 . 19 . . . . 12 12 12 4 5 15 Full Trace Events 54 | . 1 . 1 . . 1 1 2 1 . . . 2 . 3 . . . . . 2 . 3 . . . . 7 . 4 . . . . 8 . 8 . . . . 4 . . 2 . 4 Feedback Events 2 | . . . . . . . . 1 . . . . . . . . . . . . . . . . . . . 1 . . . . . . . . . . . . . . . . . . . Corruption 2 | . . . . . . . . 1 . . . . . . . . . . . . . . . . . . . 1 . . . . . . . . . . . . . . . . . . . Feedback Blocked . | . . . . . . . . . . . . . . . . . . . . . . . . . . . . . . . . . . . . . . . . . . . . . . . . Robot Schematics Acquired 8 | . . . . . . . . . . . . . . . 1 . . . . . . . . . . 5 . . . . . . . . . . . . . . . . 1 . 1 . . Robots Built 6 | . . . . . . . . . . . . . 2 . 2 . . . . . . . . . . . . . . 2 . . . . . . . . . . . . . . . . . Authchips . | . . . . . . . . . . . . . . . . . . . . . . . . . . . . . . . . . . . . . . . . . . . . . . . . Time 172 | . . . . . . . . . . . . . 38 . 67 . . . . . . . . . . . . . . 67 . . . . . . . . . . . . . . . . . Total Robot Build Rating 22 | . . . . . . . . . . . . . 6 . 8 . . . . . . . . . . . . . . 8 . . . . . . . . . . . . . . . . . Part Schematics Acquired 101 | . . . 1 . . . 5 . . . . . 10 . 4 . . . . . 3 . 1 . . 12 . 3 . 1 . . . 2 4 . 2 . . . . 6 7 20 5 9 6 Parts Built 34 | . . . . . . . . . . . . . 1 . 3 . . . . . 1 . 4 . . . . 7 . 1 . . . . 3 . 4 . . . . 4 . . 2 . 4 Authchips . | . . . . . . . . . . . . . . . . . . . . . . . . . . . . . . . . . . . . . . . . . . . . . . . . Time 1598 | . . . . . . . . . . . . . 53 . 100 . . . . . 76 . 153 . . . . 268 . 128 . . . . 254 . 208 . . . . 144 . . 62 . 152 Total Part Build Rating 214 | . . . . . . . . . . . . . 6 . 16 . . . . . 5 . 22 . . . . 44 . 8 . . . . 20 . 26 . . . . 25 . . 14 . 28 Parts Repaired 48 | . 1 . . . . . 2 . 2 . . 4 3 . 4 . . . . . 1 . 4 . . . . 1 . 1 . . . . 10 . 3 . . . . 7 . 3 . 2 . Time 2370 | . 32 . . . . . 174 . 104 . . 158 132 . 238 . . . . . 54 . 289 . . . . 112 . 19 . . . . 446 . 181 . . . . 252 . 117 . 62 . Parts Recycled . | . . . . . . . . . . . . . . . . . . . . . . . . . . . . . . . . . . . . . . . . . . . . . . . . Recycled Matter 5 | . . . . . . . . . . . . . 5 . . . . . . . . . . . . . . . . . . . . . . . . . . . . . . . . . . Retrieved Matter . | . . . . . . . . . . . . . . . . . . . . . . . . . . . . . . . . . . . . . . . . . . . . . . . . Retrieved Components 97 | . 10 . 9 . . . 10 . 2 . . 9 3 . . . . . . . 1 . 2 . . . . 10 . 2 . . . . 24 . 4 . . . . 10 . . 1 . . Parts Scanalyzed 30 | . . . 1 . . . 6 . . . . . 4 . 3 . . . . . 2 . . . . . . 1 . . . . . . 2 . 1 . . . . 4 4 2 . . . Part Schematics Acquired 26 | . . . 1 . . . 5 . . . . . 3 . 3 . . . . . 1 . . . . . . 1 . . . . . . 2 . 2 . . . . 4 4 . . . . Parts Damaged 4 | . . . 1 . . . . . . . . . 1 . . . . . . . 1 . . . . . . . . . . . . . . . 1 . . . . . . . . . . Bothacking | -11 -10 -10 -9 -9 -9 -8 -8 -8 -8 -8 -8 -8 -7 -7 -7 -7 -7 -7 -7 -6 -6 -6 -6 -6 -6 -6 -5 -5 -5 -5 -5 -5 -5 -5 -4 -4 -4 -4 -4 -4 -3 -3 -3 -3 -2 -2 -1 ------------ Run | Yrd Mat Min Mat Min Exi Min Mat Gar Mat Gar Mat Sto Fac Was Fac Low Low Zio Dee Pro Fac Was Fac Low Low Dat Pro Fac Was Fac Ext Cet Arc Hub Fac Was Fac Upp Upp War Pro Res Qua Sec Res Tes Acc Used RIF Installer . | . . . . . . . . . . . . . . . . . . . . . . . . . . . . . . . . . . . . . . . . . . . . . . . . Robots Hacked 66 | . . . 1 . 5 . . . . . . . 6 3 . 1 . . . . 1 . . . . . . 1 . 2 1 . 3 2 3 . 1 1 . 5 . 1 6 1 22 . . Non-combat 29 | . . . 1 . 3 . . . . . . . 6 1 . . . . . . 1 . . . . . . 1 . 2 . . . . 3 . 1 . . . . . 5 1 4 . . Combat 36 | . . . . . 2 . . . . . . . . 2 . 1 . . . . . . . . . . . . . . 1 . 3 1 . . . 1 . 5 . 1 1 . 18 . . Robot Hacks Applied 67 | . . . 1 . 5 . . . . . . . 6 3 . 1 . . . . 1 . . . . . . 1 . 3 1 . 3 1 4 . 1 1 . 5 . 1 6 1 22 . . parse_system 52 | . . . 1 . 5 . . . . . . . . 3 . 1 . . . . . . . . . . . . . . 1 . 3 1 . . 1 1 . 5 . 1 6 1 22 . . no_distress 3 | . . . . . . . . . . . . . . . . . . . . . . . . . . . . 1 . 2 . . . . . . . . . . . . . . . . . find_chute 10 | . . . . . . . . . . . . . 5 . . . . . . . 1 . . . . . . . . . . . . . 4 . . . . . . . . . . . . find_fabricator 2 | . . . . . . . . . . . . . 1 . . . . . . . . . . . . . . . . 1 . . . . . . . . . . . . . . . . . Manual 1 | . . . . . . . . . . . . . . . . . . . . . . . . . . . . . . . . . . 1 . . . . . . . . . . . . . Relay Couplers Released 41 | . . . . . . . . 18 . 19 . . . . . . . . . . . . . . . . . . . . . . . 1 . . . . . . . . . 2 1 . . Machine Destruction 41 | . . . . . . . . 18 . 19 . . . . . . . . . . . . . . . . . . . . . . . 1 . . . . . . . . . 2 1 . . Fabnet Peak Effective % . | . . . . . . . . . . . . . . . . . . . . . . . . . . . . . . . . . . . . . . . . . . . . . . . . Robots Rewired 41 | . . . . . . . . . . 3 . . . . . . 5 . . . . . . 3 6 . . . . . 16 . . . 1 . . 1 1 5 . . . . . . . Allies Hacked 2 | . . . . . . . . . . . . . . . 2 . . . . . . . . . . . . . . . . . . . . . . . . . . . . . . . . Hacks Repelled . | . . . . . . . . . . . . . . . . . . . . . . . . . . . . . . . . . . . . . . . . . . . . . . . . Allies | -11 -10 -10 -9 -9 -9 -8 -8 -8 -8 -8 -8 -8 -7 -7 -7 -7 -7 -7 -7 -6 -6 -6 -6 -6 -6 -6 -5 -5 -5 -5 -5 -5 -5 -5 -4 -4 -4 -4 -4 -4 -3 -3 -3 -3 -2 -2 -1 -------- Run | Yrd Mat Min Mat Min Exi Min Mat Gar Mat Gar Mat Sto Fac Was Fac Low Low Zio Dee Pro Fac Was Fac Low Low Dat Pro Fac Was Fac Ext Cet Arc Hub Fac Was Fac Upp Upp War Pro Res Qua Sec Res Tes Acc Total Allies 171 | . 1 1 1 3 . . 4 . 1 3 . 10 3 18 3 . 6 7 1 . 4 19 1 3 8 . . . . 8 30 5 . 1 5 . 3 1 1 5 . . 3 5 1 1 5 Largest Group 22 | . 1 2 2 3 3 3 4 2 1 3 3 10 3 18 14 4 7 14 1 . 4 19 1 4 7 7 . . . 3 22 21 20 10 7 . 2 1 1 6 6 4 2 5 3 2 4 Highest-Rated Group 1033 | . 10 41 20 40 40 40 58 26 15 101 101 173 68 444 400 116 158 334 119 . 103 702 10 121 186 186 . . . 100 721 1033 937 551 474 . 108 116 48 320 320 216 52 187 116 71 219 Highest-Rated Ally 159 | . 10 31 10 16 16 16 16 16 15 39 39 39 26 35 37 37 37 37 119 . 31 50 10 49 32 32 . . . 37 159 159 159 96 96 . 54 116 48 65 65 65 45 45 45 45 58 Total Orders 603 | . 3 7 17 1 . . 2 3 . 6 . 5 5 . 9 10 21 32 . . 3 . 25 27 20 16 . . . 18 37 7 10 94 65 . 10 1 2 26 31 8 26 25 8 11 12 STAY 371 | . 2 4 10 1 . . 1 2 . 3 . 1 2 . 7 7 15 23 . . 2 . 14 18 14 16 . . . 12 19 3 6 56 36 . 5 1 2 13 17 4 16 17 4 9 9 ROAM 16 | . . . . . . . . . . . . 1 1 . . . . . . . . . . 1 . . . . . . 2 . 1 7 . . . . . . . . 3 . . . . FOLLOW 169 | . 1 3 7 . . . 1 1 . 3 . 1 2 . 2 3 5 4 . . 1 . 11 8 6 . . . . 6 13 2 . 23 28 . 5 . . 2 8 . 7 8 4 2 2 GUARD 45 | . . . . . . . . . . . . 2 . . . . 1 4 . . . . . . . . . . . . 3 2 3 8 1 . . . . 11 6 4 . . . . . EXPLORE 1 | . . . . . . . . . . . . . . . . . . . . . . . . . . . . . . . . . . . . . . . . . . . . . . . 1 RETURN 1 | . . . . . . . . . . . . . . . . . . 1 . . . . . . . . . . . . . . . . . . . . . . . . . . . . . Ally Attacks 889 | . . . . . . 15 6 16 2 2 13 143 8 90 69 . 12 18 27 . 20 45 . 5 14 13 . . . 26 127 42 19 67 24 . 9 . . 5 25 10 . . . . 17 Total Damage 25736 | . . . . . . 170 27 159 30 29 225 1963 162 3262 1753 . 302 370 1923 . 339 3400 . 111 172 185 . . . 424 3724 730 389 2836 1056 . 376 . . 172 843 326 . . . . 278 Kills 171 | . . . . . . 3 . 1 . 1 4 18 2 11 18 . 1 4 10 . 2 11 . 1 1 . . . . 3 22 8 3 28 6 . 3 . . 1 4 4 . . . . 1 Allies Corrupted 3 | . . . . . . . . . . . . 1 . . . . . . . . . . . . . . . . . . . . . . . . . . . . 2 . . . . . . Allies Melted 4 | . . . . . . . . . . . . . . . . . . . . . . . . . . . . . . 1 . . . . . . . . . 2 . . . . 1 . . Intel | -11 -10 -10 -9 -9 -9 -8 -8 -8 -8 -8 -8 -8 -7 -7 -7 -7 -7 -7 -7 -6 -6 -6 -6 -6 -6 -6 -5 -5 -5 -5 -5 -5 -5 -5 -4 -4 -4 -4 -4 -4 -3 -3 -3 -3 -2 -2 -1 ------- Run | Yrd Mat Min Mat Min Exi Min Mat Gar Mat Gar Mat Sto Fac Was Fac Low Low Zio Dee Pro Fac Was Fac Low Low Dat Pro Fac Was Fac Ext Cet Arc Hub Fac Was Fac Upp Upp War Pro Res Qua Sec Res Tes Acc Robot Analysis Total 31 | . 4 . . . . 1 3 . 1 . . 1 3 . . . . . . . . . . . . . . 1 . . . . . . 5 . 1 . . . . 1 2 4 . 1 3 Derelict Logs Recovered 15 | . . 1 . 2 . . . . . . . . . . . 1 3 1 . 1 . . . . 2 . 2 . . . . . . . . . . 1 1 . . . . . . . . Drone Launches 3 | . . . . . . . . . . . . . . . . . . 1 . . . . . . . . . . . . . . . . . . . . . . . . . . . . 2 Drone Recoveries 1 | . . . . . . . . . . . . . . . . . . 1 . . . . . . . . . . . . . . . . . . . . . . . . . . . . . Exploration | -11 -10 -10 -9 -9 -9 -8 -8 -8 -8 -8 -8 -8 -7 -7 -7 -7 -7 -7 -7 -6 -6 -6 -6 -6 -6 -6 -5 -5 -5 -5 -5 -5 -5 -5 -4 -4 -4 -4 -4 -4 -3 -3 -3 -3 -2 -2 -1 ------------- Run | Yrd Mat Min Mat Min Exi Min Mat Gar Mat Gar Mat Sto Fac Was Fac Low Low Zio Dee Pro Fac Was Fac Low Low Dat Pro Fac Was Fac Ext Cet Arc Hub Fac Was Fac Upp Upp War Pro Res Qua Sec Res Tes Acc Turns Passed 74181 | 290 1911 1064 3429 1274 448 1373 2389 1786 947 1608 246 1738 1847 313 1285 1119 4146 2005 2447 5176 1367 53 1509 4073 3625 125 608 2752 35 1578 1019 197 147 1800 2486 46 2277 2390 1769 1096 1420 1480 1063 1782 528 531 1584 Spaces Moved 95643 | 140 925 612 1645 689 270 743 1130 802 402 798 135 682 2382 449 2614 2073 5582 2926 4162 5344 2930 130 3062 3428 3395 265 1531 4891 101 3109 1474 215 143 2731 5642 145 4527 2435 2759 1525 2540 3096 2282 3170 1606 1175 2831 Core 7 | 7 . . . . . . . . . . . . . . . . . . . . . . . . . . . . . . . . . . . . . . . . . . . . . . . Treads 9324 | 133 925 612 1645 689 270 743 1130 802 402 798 135 682 358 . . . . . . . . . . . . . . . . . . . . . . . . . . . . . . . . . . Legs . | . . . . . . . . . . . . . . . . . . . . . . . . . . . . . . . . . . . . . . . . . . . . . . . . Wheels . | . . . . . . . . . . . . . . . . . . . . . . . . . . . . . . . . . . . . . . . . . . . . . . . . Hover . | . . . . . . . . . . . . . . . . . . . . . . . . . . . . . . . . . . . . . . . . . . . . . . . . Flight 86294 | . . . . . . . . . . . . . 2024 449 2614 2073 5582 2926 4162 5344 2930 130 3062 3428 3395 265 1531 4891 101 3109 1474 215 143 2731 5642 145 4527 2435 2759 1525 2540 3096 2282 3152 1606 1175 2831 Fastest Speed 17 | 50 160 160 160 160 160 160 155 155 155 155 166 158 33 32 32 32 26 27 31 31 19 22 22 26 26 26 28 26 29 29 31 27 31 27 25 28 17 24 28 28 28 27 17 19 22 22 17 Average Speed 42 | 154 160 160 160 160 160 166 164 161 155 156 166 164 51 32 32 32 31 36 32 31 26 22 26 26 26 26 29 32 29 29 31 31 31 31 28 28 27 30 28 28 30 27 27 27 22 22 18 Slowest Speed 320 | 160 160 160 240 160 160 240 320 163 235 240 166 245 158 110 32 33 107 111 115 108 29 22 103 26 104 29 110 117 29 108 31 108 31 115 108 28 100 104 103 28 164 100 100 100 22 22 84 Overloaded Moves 257 | . . . . . . . . . . . . . . . . . 89 9 . . 29 . . . . . . 32 . . . 6 . 30 1 . 34 7 . . . . 16 4 . . . Propulsion Burnouts . | . . . . . . . . . . . . . . . . . . . . . . . . . . . . . . . . . . . . . . . . . . . . . . . . Robots Hopped 196 | . . . . . . . . . . . . . . . 12 . 1 . . . 13 . 6 1 . 4 . 17 . 7 11 . . 37 25 . 24 2 . . . 10 6 2 6 8 4 Cave-ins Triggered . | . . . . . . . . . . . . . . . . . . . . . . . . . . . . . . . . . . . . . . . . . . . . . . . . Spacefolds 5 | . . . . . . . . . . . . . . . . . . . . . . . . . . . . . . . . . . . . . . . . . . . . 5 . . . Exploration Rate (%) 76 | 7 96 98 96 99 67 98 62 89 43 89 21 95 55 97 63 99 99 91 88 95 62 76 50 99 99 82 89 77 83 49 83 73 71 70 57 96 62 99 99 92 99 59 98 74 41 52 43 Regions Visited 47 Branch Regions 25 Pre-discovered Areas 10 | . 1 1 . . . . 1 . . . . . . . . 1 1 3 . . . . . . 1 1 . . . . . . . . . . . . . . . . . . . . . Known Exits Taken 29 | . 1 . . . . . 1 . 1 . 1 . . . 1 1 1 . 1 1 . . 1 1 1 1 1 . . 1 1 1 1 1 . . 1 1 1 1 1 1 1 1 1 1 . Unknown Exits Taken 8 | 1 . 1 1 1 1 1 . . . . . 1 . . . . . 1 . . . . . . . . . . . . . . . . . . . . . . . . . . . . . Scrap Searched 37 | . . 1 . 1 . 3 . . . . . . . . . 4 3 5 . 3 . . . 4 2 . 2 . . . . . . . . . . 2 2 . 5 . . . . . . Spaces Dug 829 | . . . 3 1 . . 8 . . . . 6 25 . 25 14 17 . 7 15 46 1 82 13 27 1 12 87 . 53 2 . . 29 58 . 85 31 8 . 10 26 20 32 9 19 57 Terrain Destroyed 4246 | . 1 . 15 89 . . 41 59 28 15 . 116 84 . 49 14 52 . 13 33 109 1 187 65 77 1 110 279 . 130 49 155 . 189 266 . 332 175 278 482 105 77 68 187 9 71 235 Melee 603 | . . . 2 1 . . 8 . . . . 2 21 . 25 8 8 . 3 12 44 1 76 9 13 1 8 69 . 35 2 . . 21 49 . 56 2 4 . 5 22 17 23 7 14 35 Projectile 270 | . 1 . 2 2 . . . . . 3 . 5 4 . . 6 10 . 8 21 2 . 6 4 15 . 4 18 . 18 . . . 8 10 . 29 32 4 . 8 4 3 10 2 5 26 AOE 3359 | . . . 11 86 . . 33 59 28 12 . 109 59 . 24 . 32 . . . 63 . 105 51 44 . 98 192 . 77 47 155 . 160 207 . 247 140 267 482 92 51 48 154 . 52 174 Terrain Rammed . | . . . . . . . . . . . . . . . . . . . . . . . . . . . . . . . . . . . . . . . . . . . . . . . . Walls Destroyed . | . . . . . . . . . . . . . . . . . . . . . . . . . . . . . . . . . . . . . . . . . . . . . . . . Machines Disabled . | . . . . . . . . . . . . . . . . . . . . . . . . . . . . . . . . . . . . . . . . . . . . . . . . Actions | -11 -10 -10 -9 -9 -9 -8 -8 -8 -8 -8 -8 -8 -7 -7 -7 -7 -7 -7 -7 -6 -6 -6 -6 -6 -6 -6 -5 -5 -5 -5 -5 -5 -5 -5 -4 -4 -4 -4 -4 -4 -3 -3 -3 -3 -2 -2 -1 --------- Run | Yrd Mat Min Mat Min Exi Min Mat Gar Mat Gar Mat Sto Fac Was Fac Low Low Zio Dee Pro Fac Was Fac Low Low Dat Pro Fac Was Fac Ext Cet Arc Hub Fac Was Fac Upp Upp War Pro Res Qua Sec Res Tes Acc Total 124484 | 179 1227 661 2202 785 285 808 1508 1112 642 1006 151 1113 2791 610 2934 2441 7775 3852 5176 8653 3327 146 3572 6534 5960 291 1653 5765 103 3589 1918 335 244 3534 6340 149 5291 4004 3660 2119 3109 3639 2616 3898 1743 1372 3662 Wait 21354 | . 184 6 146 24 . 13 161 135 138 31 1 173 126 131 156 286 1870 873 837 3038 202 10 298 2906 2321 11 50 410 . 240 277 87 86 692 374 . 391 1379 763 457 448 409 168 424 11 120 491 Move 95221 | 139 924 611 1644 688 269 742 1129 801 401 797 134 681 2382 448 2592 2072 5579 2925 4161 5343 2906 129 3050 3425 3394 259 1530 4857 100 3094 1452 214 142 2664 5594 144 4480 2431 2758 1524 2539 3076 2269 3152 1594 1160 2822 Hop 169 | . . . . . . . . . . . . . . . 9 . 1 . . . 11 . 5 1 . 1 . 17 . 7 10 . . 29 23 . 22 1 . . . 9 6 2 5 6 4 Pick Up 740 | 13 15 7 18 7 2 4 32 5 11 18 4 13 23 6 14 2 17 13 13 36 25 1 26 50 18 . 11 35 . 24 7 7 3 8 53 . 28 26 10 6 7 24 23 30 12 7 26 Fast Attach 306 | . 1 . 10 2 . 3 8 2 7 . . 12 7 3 6 2 4 4 15 2 7 . 6 2 1 . 4 22 1 3 2 1 . 4 14 2 14 8 3 14 8 5 6 37 21 10 23 Attach 393 | 7 2 1 5 2 1 1 12 1 4 5 1 3 11 . 4 . 12 2 5 3 12 . 18 10 4 2 7 30 . 12 7 6 1 6 39 . 23 13 11 2 9 16 12 28 13 7 23 Detach 136 | . . . . . 1 . 4 . . . . 1 2 . 2 . 8 1 5 1 2 . 2 . . 1 . 12 . 1 2 . . 3 16 . 11 7 2 4 5 9 6 14 3 3 8 Swap 1083 | 2 8 2 28 11 3 2 27 13 15 31 3 31 34 6 32 16 37 14 25 40 30 . 21 16 15 3 9 75 1 43 40 1 3 53 51 1 94 18 17 5 22 27 26 48 5 4 75 Drop 923 | 1 5 8 32 4 4 4 33 9 15 18 4 23 28 9 17 4 20 17 25 39 20 1 30 40 19 . 13 53 . 25 8 8 4 11 52 2 36 34 13 21 15 18 28 60 31 15 47 Fire 2145 | 17 88 25 136 44 . 39 92 145 51 102 4 110 80 4 37 30 168 . 79 123 11 . 9 39 136 . 11 50 . 28 2 11 . 12 25 . 56 70 70 75 45 11 11 31 2 13 53 Melee 1454 | . . . 3 3 5 . 9 . . 4 . 7 60 3 46 29 32 3 8 24 99 5 107 27 27 14 18 145 1 81 80 . 5 49 76 . 116 11 13 11 11 35 60 64 46 27 90 Ram . | . . . . . . . . . . . . . . . . . . . . . . . . . . . . . . . . . . . . . . . . . . . . . . . . Kick . | . . . . . . . . . . . . . . . . . . . . . . . . . . . . . . . . . . . . . . . . . . . . . . . . Crush 1 | . . . . . . . 1 . . . . . . . . . . . . . . . . . . . . . . . . . . . . . . . . . . . . . . . . Escape Stasis 54 | . . . . . . . . . . . . . . . 18 . . . . . . . . . . . . . . 16 . . . . . . 20 . . . . . . . . . . Rewire 67 | . . . . . . . . . . . . . . . 1 . 27 . . . . . . 14 25 . . . . . . . . . . . . . . . . . . . . . . Trap 438 | . . 1 180 . . . . 1 . . . 59 38 . . . . . 3 4 2 . . 4 . . . 59 . 15 31 . . 3 23 . . 6 . . . . 1 8 . . . Miscellaneous . | . . . . . . . . . . . . . . . . . . . . . . . . . . . . . . . . . . . . . . . . . . . . . . . . Route ------- -11/Scrapyard -10/Materials (discovered 5 exits: *Mat x3 / *Min x2) -10/Mines (discovered 2 exits: *Mat x2) -9/Materials (discovered 4 exits: *Mat x3 / [*Min]) -9/Mines (discovered 4 exits: *Mat x2 / [*Exi] / *Zio) -9/Exiles (discovered 2 exits: *Min x2) -8/Mines (discovered 2 exits: *Mat x2) -8/Materials (discovered 2 exits: Sto / Gar) -8/Garrison (discovered 3 exits: *Mat x3) -8/Materials (discovered 2 exits: *Sto / Gar) -8/Garrison (discovered 3 exits: *Mat x3) -8/Materials -8/Storage -7/Factory -7/Waste -7/Factory (discovered 3 exits: *Fac / *Low x2) -7/Lower Caves -7/Lower Caves (discovered 2 exits: *Fac / *Zio) -7/Zion (discovered 2 exits: [*Dee] / [*Pro]) -7/Deep Caves -6/Proximity Caves -6/Factory (discovered 3 exits: *Fac x2 / *Low) -6/Waste -6/Factory (discovered 2 exits: *Low x2) -6/Lower Caves -6/Lower Caves (discovered 2 exits: *Fac / *Dat) -6/Data Miner -5/Proximity Caves -5/Factory (discovered 8 exits: *Fac x4 / *Upp x2 / Ext x2) -5/Waste -5/Factory (discovered 5 exits: *Fac x2 / *Upp / *Ext x2) -5/Extension (discovered 2 exits: *Fac / *Cet) -5/Cetus (discovered 2 exits: *Fac / *Arc) -5/Archives -5/Hub_04(d) -4/Factory (discovered 6 exits: Res x4 / *Upp x2) -4/Waste -4/Factory (discovered 6 exits: *Res x4 / *Upp x2) -4/Upper Caves -4/Upper Caves (discovered 2 exits: *Res / *War) -4/Warlord -3/Proximity Caves -3/Research (discovered 6 exits: Res x3 / Arm / *Qua x2) -3/Quarantine (discovered 2 exits: *Res / *Sec) -3/Section 7 -2/Research (discovered 5 exits: *Acc x3 / *Tes x2) -2/Testing (discovered 2 exits: *Acc / Gar) -1/Access (discovered 2 exits: *Sur / Com) Tau Ceti IV Orbit History --------- Turn | Location | Event 8 | -11/Scrapyard | Discovered new exit (range 16) 291 | -11/Scrapyard | Entered Materials 295 | -10/Materials | Identified exit to Mines 326 | -10/Materials | Build established: Mutant 536 | -10/Materials | Discovered new exit (range 6) 848 | -10/Materials | Repaired Autogun 1051 | -10/Materials | Discovered new exit (range 8) 1406 | -10/Materials | Discovered new exit (range 16) 1535 | -10/Materials | Central database locked down 2202 | -10/Materials | Entered Mines 2202 | -10/Mines | Accompanied by 1 ally 2283 | -10/Mines | Met a Derelict bent on vengeance 2646 | -10/Mines | Received a Rocket Launcher from a helpful Derelict 2693 | -10/Mines | Discovered new exit (range 9) 2757 | -10/Mines | Found a damaged Exp. Sensor Array with a note attached 2761 | -10/Mines | Found Prototype Device 2804 | -10/Mines | Found a hidden stash of uninstalled traps 2951 | -10/Mines | Received a Mining Laser from a helpful Derelict 3208 | -10/Mines | Discovered new exit (range 5) 3266 | -10/Mines | Entered Materials 3266 | -9/Materials | Accompanied by 1 ally 3266 | -9/Materials | Evolved 2 slots: Utility x2 3810 | -9/Materials | Build established: Scavenger-Skirmisher 3854 | -9/Materials | Discovered new exit (range 11) 5009 | -9/Materials | Discovered new exit (range 9) 5082 | -9/Materials | Build established: Mutant 5338 | -9/Materials | Discovered new exit (range 19) 5577 | -9/Materials | Identified Exp. Sensor Array 6201 | -9/Materials | Discovered new exit (range 5) 6695 | -9/Materials | Entered Mines 6695 | -9/Mines | Accompanied by 2 allies 6696 | -9/Mines | Assembled infested the area 6745 | -9/Mines | Core integrity fell below 50% 6767 | -9/Mines | Destroyed 18 combat bots 7014 | -9/Mines | Deemed a non-threat by the Exiles lab entrance 7016 | -9/Mines | Discovered new exit (range 5) 7036 | -9/Mines | A Derelict revealed a hidden shortcut to a safe place 7097 | -9/Mines | Learned Materials interactive machine intel 7199 | -9/Mines | Assisted by bots powering up and referring to "LRC-V3" 7377 | -9/Mines | Discovered new exit (range 10) 7646 | -9/Mines | Discovered new exit (range 12) 7969 | -9/Mines | Entered Exiles 7969 | -9/Exiles | Accompanied by 3 allies 7990 | -9/Exiles | Discovered new exit (range 18) 8009 | -9/Exiles | Met 8R-AWN 8097 | -9/Exiles | Met EX-HEX 8175 | -9/Exiles | Met EX-DEC 8215 | -9/Exiles | Build established: Scavenger-Mutant 8256 | -9/Exiles | Met EX-BIN 8395 | -9/Exiles | Discovered new exit (range 15) 8417 | -9/Exiles | Entered Mines 8417 | -8/Mines | Accompanied by 3 allies 8634 | -8/Mines | Discovered new exit (range 12) 8681 | -8/Mines | Discovered new exit (range 18) 9790 | -8/Mines | Entered Materials 9790 | -8/Materials | Evolved 2 slots: Propulsion x1, Utility x1 9791 | -8/Materials | Identified exit to Storage 9792 | -8/Materials | Loaded intel: 19 interactive machine locations 10028 | -8/Materials | Identified exit to Garrison 10154 | -8/Materials | Lost 3 parts (2n1u) 11357 | -8/Materials | Build established: Mutant 11485 | -8/Materials | Repaired Broken Exp. Sensor Array 11573 | -8/Materials | Repaired Adv. Treads 11819 | -8/Materials | Central database locked down 12174 | -8/Materials | Garrison activated, responded to threat 12179 | -8/Materials | Entered Garrison 12179 | -8/Garrison | Accompanied by 2 allies 12326 | -8/Garrison | Triggered checkpoint 12395 | -8/Garrison | Triggered checkpoint 12468 | -8/Garrison | Garrison Relay disabled 12864 | -8/Garrison | Discovered new exit (range 12) 12909 | -8/Garrison | Triggered checkpoint 12934 | -8/Garrison | Garrison Relay disabled 13014 | -8/Garrison | Triggered checkpoint 13143 | -8/Garrison | Triggered checkpoint 13173 | -8/Garrison | Garrison Relay disabled 13228 | -8/Garrison | Triggered checkpoint 13275 | -8/Garrison | Discovered new exit (range 12) 13401 | -8/Garrison | Triggered checkpoint 13545 | -8/Garrison | Triggered checkpoint 13609 | -8/Garrison | Garrison Relay disabled 13718 | -8/Garrison | Discovered new exit (range 9) 13834 | -8/Garrison | Phase Generator disabled 13836 | -8/Garrison | Identified exit to Materials 13910 | -8/Garrison | Spotted B-75 Beast 13921 | -8/Garrison | Learned Materials security intel 13965 | -8/Garrison | Entered Materials 14557 | -8/Materials | Identified exit to Garrison 14605 | -8/Materials | Discovered exit to Storage (range 3) 14620 | -8/Materials | Repaired Imp. Medium Armor Plating? 14766 | -8/Materials | Build established: Scavenger-Mutant 14825 | -8/Materials | Repaired Enh. Autogun 14902 | -8/Materials | Garrison activated, responded to threat 14912 | -8/Materials | Entered Garrison 14912 | -8/Garrison | Accompanied by 1 ally 14982 | -8/Garrison | Triggered checkpoint 15045 | -8/Garrison | Garrison Relay disabled 15088 | -8/Garrison | Triggered checkpoint 15131 | -8/Garrison | Triggered checkpoint 15340 | -8/Garrison | Discovered new exit (range 14) 15528 | -8/Garrison | Triggered checkpoint 15547 | -8/Garrison | Garrison Relay disabled 15652 | -8/Garrison | Triggered checkpoint 15658 | -8/Garrison | Triggered checkpoint 15812 | -8/Garrison | Triggered checkpoint 15841 | -8/Garrison | Garrison Relay disabled 15854 | -8/Garrison | Garrison Relay disabled 15922 | -8/Garrison | Triggered checkpoint 15971 | -8/Garrison | Discovered new exit (range 14) 16139 | -8/Garrison | Discovered new exit (range 12) 16238 | -8/Garrison | Triggered checkpoint 16266 | -8/Garrison | Garrison Relay disabled 16498 | -8/Garrison | Build established: Mutant 16520 | -8/Garrison | Entered Materials 16520 | -8/Materials | Accompanied by 3 allies 16722 | -8/Materials | Discovered exit to Storage (range 5) 16766 | -8/Materials | Entered Storage 16766 | -8/Storage | Accompanied by 3 allies 16913 | -8/Storage | Core integrity fell below 50% 17089 | -8/Storage | Repaired Lgt. Deuterium Engine 17134 | -8/Storage | Repaired Imp. Medium Armor Plating? 17166 | -8/Storage | First assault squad dispatched 17213 | -8/Storage | Lost 3 allies 17942 | -8/Storage | Repaired Imp. Datajack 17980 | -8/Storage | Repaired Lgt. Deuterium Engine 18009 | -8/Storage | Assisted by bots powering up and referring to "LRC-V3" 18118 | -8/Storage | Lost 5 allies 18319 | -8/Storage | Build established: Commander-Mutant 18419 | -8/Storage | Discovered new exit (range 15) 18422 | -8/Storage | Lost 3 allies 18424 | -8/Storage | Destroyed 10 combat bots 18504 | -8/Storage | Entered Factory 18504 | -7/Factory | Accompanied by 1 ally 18504 | -7/Factory | Evolved 2 slots: Propulsion x2 18687 | -7/Factory | Build established: Mutant 18715 | -7/Factory | Repaired Hvy. Rocket Launcher 18807 | -7/Factory | Garrison activated, responded to threat 19121 | -7/Factory | Garrison activated, responded to threat 19563 | -7/Factory | Repaired Hvy. Rocket Launcher 19608 | -7/Factory | Repaired Transmission Jammer 19617 | -7/Factory | Build established: Hacker-Sprinter 19781 | -7/Factory | Discovered new exit (range 8) 19786 | -7/Factory | Identified exit to Factory 19835 | -7/Factory | Fabricated H-55 Commando (x2) 20133 | -7/Factory | First assault squad dispatched 20231 | -7/Factory | Fabricated Adv. Hacking Suite (x1) 20351 | -7/Factory | Manually triggered Chute Trap 20351 | -7/Factory | Sucked down chute 20351 | -7/Factory | Entered Waste 20358 | -7/Waste | Found Prototype Launcher 20390 | -7/Waste | Spotted C-40 Crusher 20390 | -7/Waste | Spotted C-40 Crusher 20391 | -7/Waste | Spotted C-40 Crusher 20405 | -7/Waste | Spotted C-40 Crusher 20406 | -7/Waste | 1 allies followed down the chute 20443 | -7/Waste | Spotted C-40 Crusher 20444 | -7/Waste | Spotted C-40 Crusher 20451 | -7/Waste | Warlord forces began an assault 20453 | -7/Waste | Discovered new exit (range 16) 20461 | -7/Waste | Allies destroyed C-40 Crusher 20464 | -7/Waste | Allies destroyed C-40 Crusher 20469 | -7/Waste | Allies destroyed C-40 Crusher 20470 | -7/Waste | Allies destroyed C-40 Crusher 20480 | -7/Waste | Allies destroyed C-40 Crusher 20483 | -7/Waste | Allies destroyed C-40 Crusher 20506 | -7/Waste | Lost 5 allies 20631 | -7/Waste | Identified exit to Factory 20664 | -7/Waste | Entered Factory 20664 | -7/Factory | Accompanied by 13 allies 20690 | -7/Factory | Identified exit to Lower Caves 20708 | -7/Factory | Identified Scatter Rocket Array 20873 | -7/Factory | Repaired Biomechanical Wings? 20963 | -7/Factory | Repaired Impulse Thruster? 21063 | -7/Factory | Repaired Hyp. Coil Gun 21101 | -7/Factory | Repaired Scatter Rocket Array 21155 | -7/Factory | Fabricated Adv. Signal Interpreter (x2) 21168 | -7/Factory | Fabricated Adv. Hacking Suite (x1) 21202 | -7/Factory | P-60 Hacker assimilated allied JG-NYC(l) 21208 | -7/Factory | Lost 4 allies 21305 | -7/Factory | Discovered exit to Factory (range 12) 21754 | -7/Factory | Fabricated P-60 Hacker (x2) 21864 | -7/Factory | First assault squad dispatched 21949 | -7/Factory | Entered Lower Caves 21949 | -7/Lower Caves | Accompanied by 4 allies 21995 | -7/Lower Caves | Met a Warlord Commander 21996 | -7/Lower Caves | Learned location of Warlord (-4) 21997 | -7/Lower Caves | Warlord Commander delivered Encrypted Comm Array 22062 | -7/Lower Caves | Learned Armory terminal intel 22062 | -7/Lower Caves | Learned Factory emergency access door positions 22142 | -7/Lower Caves | Identified exit to Lower Caves 22256 | -7/Lower Caves | Encountered a Warlord checkpoint 22274 | -7/Lower Caves | Build established: Scout 22689 | -7/Lower Caves | Attracted the attention of an 0b10 checkpoint 23068 | -7/Lower Caves | Entered another Lower Caves area 23068 | -7/Lower Caves | Accompanied by 4 allies 23223 | -7/Lower Caves | Learned Factory emergency access door positions 23317 | -7/Lower Caves | Discovered new exit (range 14) 23332 | -7/Lower Caves | Learned Factory emergency access door positions 23711 | -7/Lower Caves | Build established: Sprinter 24328 | -7/Lower Caves | Build established: Scout 24571 | -7/Lower Caves | Identified exit to Zion 24648 | -7/Lower Caves | Build established: Sprinter 25261 | -7/Lower Caves | Discovered exit to Factory (range 11) 26035 | -7/Lower Caves | Build established: Hacker-Sprinter 26906 | -7/Lower Caves | Build established: Commander-Sprinter 27214 | -7/Lower Caves | Entered Zion 27214 | -7/Zion | Accompanied by 7 allies 27232 | -7/Zion | Discovered new exit (range 11) 27255 | -7/Zion | Build established: Commander-Scout 27258 | -7/Zion | Given the Hacking Drone Bay 27262 | -7/Zion | System corruption reached 10% 27263 | -7/Zion | System corruption cleaned by Quarantine Array 27278 | -7/Zion | Learned 4 Factory zone layouts 27369 | -7/Zion | Met Imprinter 27446 | -7/Zion | Learned location of Armory (-3) 27471 | -7/Zion | Found Prototype Device 27503 | -7/Zion | Identified Hacking Drone Bay 27553 | -7/Zion | Found Prototype Processor 27554 | -7/Zion | Found Prototype Processor 27594 | -7/Zion | Identified Exp. Terrain Scan Processor 27629 | -7/Zion | Found Prototype Hackware 27666 | -7/Zion | Identified Spectral Analyzer 27676 | -7/Zion | Identified Exp. Hacking Suite 27681 | -7/Zion | Found Prototype Processor 27696 | -7/Zion | Found Prototype Processor 27741 | -7/Zion | Identified Exp. Armor Integrity Analyzer 27754 | -7/Zion | Build established: Commander-Sprinter 27778 | -7/Zion | Identified Exp. Signal Interpreter 27793 | -7/Zion | Found Exp. Terrain Scan Processor 27913 | -7/Zion | Visited the Megawrench Repair Shop 27913 | -7/Zion | Megawrench repaired 7 parts 28019 | -7/Zion | Found Unknown Piercing Weapon 28019 | -7/Zion | Identified CR-A16's Pointy Stick 28115 | -7/Zion | Gained Derelict followers 29177 | -7/Zion | Attacked by Zionites 29185 | -7/Zion | Destroyed Imprinter 29188 | -7/Zion | Extracted access codes from Imprinter's data core 29206 | -7/Zion | Opened final containment barrier to the Deep Caves 29210 | -7/Zion | Discovered new exit (range 5) 29211 | -7/Zion | Saw the warning signs outside the Deep Caves entrance 29219 | -7/Zion | Entered Deep Caves 29221 | -7/Deep Caves | Met 5H-AD0 29249 | -7/Deep Caves | Lost 6 allies 29276 | -7/Deep Caves | Z-Facility disabled 29359 | -7/Deep Caves | Found Prototype Protection 29458 | -7/Deep Caves | Identified Zio. Weapon Casing 29511 | -7/Deep Caves | Build established: Sprinter 29756 | -7/Deep Caves | Found Prototype Device 29756 | -7/Deep Caves | Identified 5H-AD0's Cloak 29759 | -7/Deep Caves | Found Prototype Device 29759 | -7/Deep Caves | Identified Exp. ECM Suite 29798 | -7/Deep Caves | Discovered new exit (range 6) 29800 | -7/Deep Caves | Identified exit to Proximity Caves 31666 | -7/Deep Caves | Entered Proximity Caves 31921 | -6/Proximity Caves | Discovered exit to Factory (range 5) 32209 | -6/Proximity Caves | Received a Behemoth hack from an annoying Tinkerer 35892 | -6/Proximity Caves | Learned Factory terminal intel 36842 | -6/Proximity Caves | Entered Factory 36842 | -6/Factory | Evolved 2 slots: Propulsion x1, Utility x1 36845 | -6/Factory | Loaded intel: 26 terminal locations 36934 | -6/Factory | Repaired Exp. Sensor Array? 37029 | -6/Factory | Discovered new exit (range 5) 37030 | -6/Factory | Identified exit to Lower Caves 37071 | -6/Factory | Garrison activated, responded to threat 37192 | -6/Factory | Search patrols dispatched 37355 | -6/Factory | Allied Derelicts emerged from ambush trap array 37555 | -6/Factory | Lost 3 parts (1n1u1w) 37617 | -6/Factory | Build established: Hacker-Sprinter 37800 | -6/Factory | Discovered new exit (range 9) 37804 | -6/Factory | Identified exit to Factory 37824 | -6/Factory | Discovered exit to Factory (range 7) 38109 | -6/Factory | Fabricated Biomechanical Wings? 38209 | -6/Factory | Manually triggered Chute Trap 38209 | -6/Factory | Sucked down chute 38209 | -6/Factory | Entered Waste 38216 | -6/Waste | Spotted C-40 Crusher 38224 | -6/Waste | EMP discharged 38224 | -6/Waste | System corruption reached 10% 38236 | -6/Waste | Met Warlord forces unprepared to attack 38240 | -6/Waste | Spotted C-40 Crusher 38240 | -6/Waste | Spotted C-40 Crusher 38245 | -6/Waste | Spotted C-40 Crusher 38256 | -6/Waste | Spotted C-40 Crusher 38257 | -6/Waste | Discovered new exit (range 16) 38262 | -6/Waste | Identified exit to Factory 38262 | -6/Waste | Entered Factory 38428 | -6/Factory | Repaired Exp. Sensor Array? 38533 | -6/Factory | Repaired Impulse Thruster? 38613 | -6/Factory | Fabricated Nuclear Pulse Array (x1) 38678 | -6/Factory | Repaired Mni. Fusion Reactor? 38935 | -6/Factory | Fabricated Smartbomb Launcher (x1) 39139 | -6/Factory | Fabricated Imp. System Restoration Module (x2) 39219 | -6/Factory | Repaired Broken Exp. Terrain Scan Processor? 39474 | -6/Factory | Found Unknown Device 39474 | -6/Factory | Identified Launcher Loader 39771 | -6/Factory | Entered Lower Caves 39771 | -6/Lower Caves | Accompanied by 1 ally 40158 | -6/Lower Caves | Discovered new exit (range 7) 40159 | -6/Lower Caves | Identified exit to Lower Caves 41781 | -6/Lower Caves | Build established: Hacker-Scout 43497 | -6/Lower Caves | Spotted B-75 Beast 43517 | -6/Lower Caves | Revealed the true nature of CR-A16's Pointy Stick 43520 | -6/Lower Caves | Destroyed B-75 Beast 43540 | -6/Lower Caves | Lost 3 allies 43717 | -6/Lower Caves | Build established: Hacker-Sprinter 43844 | -6/Lower Caves | Entered another Lower Caves area 43844 | -6/Lower Caves | Accompanied by 1 ally 43846 | -6/Lower Caves | Learned 12 Factory zone layouts 43892 | -6/Lower Caves | A Commander dispatched an escort 43895 | -6/Lower Caves | Learned Factory trap positions 43895 | -6/Lower Caves | Learned Extension emergency access door positions 43895 | -6/Lower Caves | Learned Extension stockpile data 43895 | -6/Lower Caves | Learned Factory terminal intel 43895 | -6/Lower Caves | Learned Research garrison access intel 44221 | -6/Lower Caves | Encountered a Warlord checkpoint 44306 | -6/Lower Caves | Discovered exit to Factory (range 9) 44734 | -6/Lower Caves | Discovered new exit (range 16) 44739 | -6/Lower Caves | Identified exit to Data Miner 46299 | -6/Lower Caves | Build established: Hacker-Scout 46989 | -6/Lower Caves | Build established: Hacker-Sprinter 47469 | -6/Lower Caves | Entered Data Miner 47469 | -6/Data Miner | Accompanied by 7 allies 47469 | -6/Data Miner | Discovered new exit (range 6) 47474 | -6/Data Miner | Met Data Miner 47479 | -6/Data Miner | Acquired the access code to Warlord's prototype stash 47479 | -6/Data Miner | Learned location of Section 7 (-3) 47484 | -6/Data Miner | Received God Mode back door access code from Data Miner 47528 | -6/Data Miner | Data Conduit disabled 47570 | -6/Data Miner | Lost 6 allies 47593 | -6/Data Miner | Identified exit to Proximity Caves 47594 | -6/Data Miner | Entered Proximity Caves 47625 | -5/Proximity Caves | Learned Factory terminal intel 47649 | -5/Proximity Caves | Found DCF Scrap (10 items) 48097 | -5/Proximity Caves | Discovered exit to Factory (range 11) 48202 | -5/Proximity Caves | Entered Factory 48202 | -5/Factory | Evolved 2 slots: Power x1, Utility x1 48203 | -5/Factory | Identified exit to Factory 48204 | -5/Factory | Loaded intel: 107 trap records 48206 | -5/Factory | Loaded intel: 27 terminal locations 48260 | -5/Factory | Spotted B-75 Beast 48288 | -5/Factory | Destroyed B-75 Beast 48376 | -5/Factory | Discovered exit to Factory (range 17) 48507 | -5/Factory | Fabricated Adv. Hacking Suite? 48688 | -5/Factory | Fabricated Adv. Signal Interpreter? 48894 | -5/Factory | Cargo convoy interrupted 48922 | -5/Factory | Destroyed 9 combat bots 49104 | -5/Factory | Destroyed 7 combat bots 49140 | -5/Factory | Identified exit to Upper Caves 49140 | -5/Factory | Identified exit to Extension 49318 | -5/Factory | Fabricated Q-thruster? 49605 | -5/Factory | Build established: Hacker-Mutant 49702 | -5/Factory | First assault squad dispatched 50241 | -5/Factory | Fabricated Cld. Nuclear Pulse Thruster? 50495 | -5/Factory | Fabricated Cld. Nuclear Pulse Thruster? 50614 | -5/Factory | Build established: Hacker-Sprinter 50824 | -5/Factory | Repaired Mic. Fission Core 50950 | -5/Factory | Destroyed 9 combat bots 50954 | -5/Factory | Manually triggered Chute Trap 50954 | -5/Factory | Sucked down chute 50954 | -5/Factory | Entered Waste 50964 | -5/Waste | Spotted C-40 Crusher 50967 | -5/Waste | Spotted C-40 Crusher 50969 | -5/Waste | EMP discharged 50983 | -5/Waste | Spotted C-40 Crusher 50985 | -5/Waste | Discovered new exit (range 16) 50985 | -5/Waste | Spotted C-40 Crusher 50985 | -5/Waste | Spotted C-40 Crusher 50989 | -5/Waste | Identified exit to Factory 50989 | -5/Waste | Entered Factory 50990 | -5/Factory | Loaded intel: 28 terminal locations 51060 | -5/Factory | Discovered exit to Upper Caves (range 9) 51150 | -5/Factory | Discovered exit to Factory (range 15) 51176 | -5/Factory | Repaired Imp. Utility Shielding 51296 | -5/Factory | Build established: Hacker-Scout 51316 | -5/Factory | Fabricated Impulse Thruster Array? 51580 | -5/Factory | Discovered exit to Extension (range 20) 52135 | -5/Factory | Discovered exit to Extension (range 13) 52264 | -5/Factory | Spotted B-75 Beast 52265 | -5/Factory | Destroyed B-75 Beast 52306 | -5/Factory | Discovered exit to Factory (range 6) 52415 | -5/Factory | Destroyed 8 combat bots 52421 | -5/Factory | Fabricated P-60 Hacker? 52567 | -5/Factory | Entered Extension 52567 | -5/Extension | Accompanied by 3 allies 52698 | -5/Extension | Rescued A7 52726 | -5/Extension | Rescued a captive Derelict 52732 | -5/Extension | Rescued a captive Derelict 52790 | -5/Extension | Rescued a captive Derelict 52824 | -5/Extension | Rescued a captive Derelict 53076 | -5/Extension | Spotted B-75 Beast 53085 | -5/Extension | Spotted B-75 Beast 53087 | -5/Extension | Allies destroyed B-75 Beast 53089 | -5/Extension | Destroyed B-75 Beast 53116 | -5/Extension | Lost 3 allies 53283 | -5/Extension | Rescued a captive Derelict 53287 | -5/Extension | Rescued a captive Derelict 53352 | -5/Extension | Rescued a captive Derelict 53352 | -5/Extension | Rescued a captive Derelict 53397 | -5/Extension | Rescued a captive Derelict 53464 | -5/Extension | Rescued a captive Derelict 53465 | -5/Extension | Rescued a captive Derelict 53489 | -5/Extension | Rescued a captive Derelict 53490 | -5/Extension | Rescued a captive Derelict 53506 | -5/Extension | Discovered exit to Factory (range 10) 53506 | -5/Extension | Discovered new exit (range 6) 53529 | -5/Extension | Identified exit to Cetus 53586 | -5/Extension | Entered Cetus 53586 | -5/Cetus | Accompanied by 21 allies (A7) 53591 | -5/Cetus | Acquired a Cetus Manufacturing Module code from A7 53613 | -5/Cetus | Spotted Cetus Guard 53613 | -5/Cetus | Spotted Cetus Guard 53613 | -5/Cetus | Spotted Cetus Guard 53613 | -5/Cetus | Spotted Cetus Guard 53618 | -5/Cetus | Allies destroyed Cetus Guard 53619 | -5/Cetus | Allies destroyed Cetus Guard 53622 | -5/Cetus | Allies destroyed Cetus Guard 53625 | -5/Cetus | Allies destroyed Cetus Guard 53636 | -5/Cetus | Started Cetus Manufacturing Module 53653 | -5/Cetus | Lost 3 allies 53655 | -5/Cetus | Escorted A7 to Cetus Mainframe 53659 | -5/Cetus | Discovered new exit (range 15) 53661 | -5/Cetus | Manufactured an Enhanced Grunt 53663 | -5/Cetus | Identified exit to Archives 53686 | -5/Cetus | Manufactured an Enhanced Grunt 53711 | -5/Cetus | Manufactured an Enhanced Grunt 53712 | -5/Cetus | Spotted Cetus Guard 53720 | -5/Cetus | Spotted Cetus Guard 53721 | -5/Cetus | Spotted Cetus Guard 53721 | -5/Cetus | Spotted Cetus Guard 53722 | -5/Cetus | Allies destroyed Cetus Guard 53723 | -5/Cetus | Destroyed Cetus Guard 53724 | -5/Cetus | Build established: Commander-Sprinter 53726 | -5/Cetus | Allies destroyed Cetus Guard 53728 | -5/Cetus | Allies destroyed Cetus Guard 53736 | -5/Cetus | Manufactured an Enhanced Grunt 53738 | -5/Cetus | Discovered exit to Factory (range 16) 53740 | -5/Cetus | Met Revision 17 53761 | -5/Cetus | Manufactured an Enhanced Grunt 53783 | -5/Cetus | Entered Archives 53783 | -5/Archives | Accompanied by 20 allies (A7) 53788 | -5/Archives | Received a hacking code to weaken MAIN.C 53876 | -5/Archives | Met Zhirov 53880 | -5/Archives | Discovered new exit (range 15) 53882 | -5/Archives | Reinforcements dispatched to Archives 53884 | -5/Archives | Read partially decrypted archive contents 53884 | -5/Archives | Read partially decrypted archive contents 53894 | -5/Archives | Identified exit to Hub_04(d) 53927 | -5/Archives | Reinforcements dispatched to Archives 53930 | -5/Archives | Entered Hub_04(d) 53930 | -5/Hub_04(d) | Accompanied by 10 allies 53953 | -5/Hub_04(d) | Lost 3 allies 54986 | -5/Hub_04(d) | Discovered exit to Factory (range 19) 55146 | -5/Hub_04(d) | Build established: Commander-Scout 55179 | -5/Hub_04(d) | Spotted B-75 Beast 55183 | -5/Hub_04(d) | Befriended a Behemoth using the annoying Tinkerer's hack 55308 | -5/Hub_04(d) | Network Hub disabled 55440 | -5/Hub_04(d) | Network Hub disabled 55484 | -5/Hub_04(d) | Build established: Commander-Sprinter 55647 | -5/Hub_04(d) | Network Hub disabled 55674 | -5/Hub_04(d) | Network Hub disabled 55730 | -5/Hub_04(d) | Entered Factory 55730 | -4/Factory | Accompanied by 5 allies 55730 | -4/Factory | Evolved 2 slots: Utility x2 55808 | -4/Factory | Repaired Broken Mic. Fission Core 55943 | -4/Factory | Identified exit to Upper Caves 56160 | -4/Factory | Repaired Cld. Nuclear Pulse Thruster? 56220 | -4/Factory | Repaired Impulse Thruster Array 56697 | -4/Factory | Discovered new exit (range 20) 56945 | -4/Factory | Build established: Hacker-Sprinter 57060 | -4/Factory | Fabricated Adv. Hacking Suite (x1) 57175 | -4/Factory | Identified exit to Research 57189 | -4/Factory | Repaired Cld. Nuclear Pulse Thruster? 57318 | -4/Factory | Fabricated Exp. Hacking Suite (x1) 57335 | -4/Factory | Repaired Q-thruster 57398 | -4/Factory | Build established: Hacker-Scout 57515 | -4/Factory | Fabricated Exp. Hacking Suite (x1) 57730 | -4/Factory | First assault squad dispatched 57806 | -4/Factory | Repaired Q-thruster 57856 | -4/Factory | Repaired Cld. Field Propulsion Drive? 57866 | -4/Factory | Repaired Smartbomb Launcher 57904 | -4/Factory | Repaired Imp. Light Armor Plating 58068 | -4/Factory | Found Exp. Thermal Shield 58101 | -4/Factory | Repaired Cld. Nuclear Pulse Thruster 58216 | -4/Factory | Manually triggered Chute Trap 58216 | -4/Factory | Sucked down chute 58216 | -4/Factory | Entered Waste 58224 | -4/Waste | Spotted C-40 Crusher 58227 | -4/Waste | Spotted C-40 Crusher 58230 | -4/Waste | Spotted C-40 Crusher 58231 | -4/Waste | EMP discharged 58242 | -4/Waste | Spotted C-40 Crusher 58244 | -4/Waste | Spotted C-40 Crusher 58249 | -4/Waste | Spotted C-40 Crusher 58250 | -4/Waste | Discovered new exit (range 13) 58262 | -4/Waste | Identified exit to Factory 58262 | -4/Waste | Entered Factory 58459 | -4/Factory | Fabricated Exp. Utility Shielding (x1) 58634 | -4/Factory | Repaired Cld. Field Propulsion Drive? 58711 | -4/Factory | Repaired Smartbomb Launcher 59272 | -4/Factory | Fabricated Exp. Signal Interpreter (x1) 60005 | -4/Factory | Repaired Exp. Utility Shielding 60014 | -4/Factory | Fabricated Exp. Hacking Suite (x1) 60366 | -4/Factory | Fabricated Cld. Field Propulsion Drive (x1) 60539 | -4/Factory | Entered Upper Caves 60595 | -4/Upper Caves | Learned Research machine intel 61302 | -4/Upper Caves | Discovered new exit (range 16) 61525 | -4/Upper Caves | Identified exit to Upper Caves 62005 | -4/Upper Caves | Build established: Machinist-Sprinter 62692 | -4/Upper Caves | Spotted B-86 Titan 62871 | -4/Upper Caves | Rewired B-86 Titan 62929 | -4/Upper Caves | Entered another Upper Caves area 62930 | -4/Upper Caves | Identified exit to Warlord 62937 | -4/Upper Caves | Discovered exit to Research (range 11) 62969 | -4/Upper Caves | Encountered a Warlord checkpoint 63062 | -4/Upper Caves | Learned Research emergency access door positions 63230 | -4/Upper Caves | Build established: Hacker-Scout 64105 | -4/Upper Caves | Build established: Hacker-Sprinter 64698 | -4/Upper Caves | Entered Warlord 64698 | -4/Warlord | Accompanied by 1 ally 64708 | -4/Warlord | Discovered new exit (range 15) 64900 | -4/Warlord | Met Warlord 64909 | -4/Warlord | Opened Warlord's prototype stash 64911 | -4/Warlord | Found Prototype Reactor 64911 | -4/Warlord | Identified Vortex Chain Reactor 64918 | -4/Warlord | Found Prototype Device 64918 | -4/Warlord | Identified Thermal Barrier 64924 | -4/Warlord | Found Prototype Device 64924 | -4/Warlord | Identified Exp. Cloaking Device 64925 | -4/Warlord | Warlord's base attacked by MAIN.C 64938 | -4/Warlord | Found Exp. Core Analyzer 64962 | -4/Warlord | Found Prototype Energy Gun 64962 | -4/Warlord | Identified Vortex Rail 65174 | -4/Warlord | Destroyed 33 combat bots 65174 | -4/Warlord | Warlord forces counterattacked 65237 | -4/Warlord | Destroyed Executioner 65258 | -4/Warlord | Found Prototype Device 65258 | -4/Warlord | Identified Adv. Kinecellerator 65260 | -4/Warlord | Destroyed 12 combat bots 65275 | -4/Warlord | Lost 5 allies 65328 | -4/Warlord | Spotted B-90 Cyclops 65328 | -4/Warlord | Spotted Executioner 65375 | -4/Warlord | Lost 10 allies 65464 | -4/Warlord | Destroyed 10 combat bots 65465 | -4/Warlord | Destroyed Executioner 65489 | -4/Warlord | Lost 13 allies 65574 | -4/Warlord | Spotted Striker 65600 | -4/Warlord | Warlord base infiltrated, sounded retreat 65638 | -4/Warlord | Spotted Striker 65731 | -4/Warlord | Spotted Executioner 65731 | -4/Warlord | Spotted Striker 65738 | -4/Warlord | Destroyed Striker 65739 | -4/Warlord | Allies destroyed Executioner 65759 | -4/Warlord | Destroyed 9 combat bots 65794 | -4/Warlord | Identified exit to Proximity Caves 65794 | -4/Warlord | Entered Proximity Caves 65794 | -3/Proximity Caves | Accompanied by 6 allies 65863 | -3/Proximity Caves | Encountered a Derelict guarding a broken Freighter 66105 | -3/Proximity Caves | Build established: Hacker-Scout 66237 | -3/Proximity Caves | Discovered exit to Research (range 18) 66770 | -3/Proximity Caves | Build established: Hacker-Sprinter 66862 | -3/Proximity Caves | Spotted B-86 Titan 66935 | -3/Proximity Caves | Found Prototype Reactor 66935 | -3/Proximity Caves | Identified Zero-point Reactor 67065 | -3/Proximity Caves | Destroyed B-86 Titan 67214 | -3/Proximity Caves | Entered Research 67214 | -3/Research | Accompanied by 4 allies 67214 | -3/Research | Evolved 2 slots: Utility x2 67216 | -3/Research | Loaded intel: 110 machine locations 67217 | -3/Research | Loaded intel: 4 garrison access locations 67328 | -3/Research | Found Prototype Hackware 67350 | -3/Research | Identified Exp. System Shield 67359 | -3/Research | Central database locked down 67400 | -3/Research | Fabricated Exp. Terrain Scanner? 67414 | -3/Research | Revision forces began assault on 0b10 67440 | -3/Research | Fabricated Quantum Shading Machine (x1) 67458 | -3/Research | Identified exit to Armory 67458 | -3/Research | Identified exit to Quarantine 67458 | -3/Research | Identified exit to Research 67469 | -3/Research | Met up with Revision 17++ 67509 | -3/Research | Build established: Wizard-Scout 67614 | -3/Research | Fabricated Hcp. Storage Unit (x1) 67717 | -3/Research | Repaired Smartbomb Launcher 67752 | -3/Research | Repaired Cld. Field Propulsion Drive 67774 | -3/Research | Repaired Impulse Thruster Array 67812 | -3/Research | Repaired Centrium Light Armor Plating 67914 | -3/Research | Research terminal network offline 67993 | -3/Research | Lost 3 allies 68004 | -3/Research | Repaired Cld. Field Propulsion Drive 68172 | -3/Research | Fabricated Cld. Impulse Thruster (x1) 68388 | -3/Research | Lost 3 allies 68531 | -3/Research | Repaired Exp. Utility Shielding 68591 | -3/Research | Repaired Exp. Terrain Scanner 68694 | -3/Research | Entered Quarantine 68733 | -3/Quarantine | Build established: Wizard-Sprinter 68916 | -3/Quarantine | Discovered exit to Research (range 8) 69062 | -3/Quarantine | Found Alien Artifact 69063 | -3/Quarantine | Identified Core Reset Matrix 69063 | -3/Quarantine | Used Core Reset Matrix 69067 | -3/Quarantine | Detected hypermatrix surge 69067 | -3/Quarantine | Sensed 10 artifacts in vicinity 69177 | -3/Quarantine | Found Sigix Broadsword 69193 | -3/Quarantine | Found Unknown Protection 69194 | -3/Quarantine | Identified Powered Armor 69315 | -3/Quarantine | Central database locked down 69379 | -3/Quarantine | Found Unknown Device 69379 | -3/Quarantine | Identified Quantum Capacitor 69401 | -3/Quarantine | Discovered exit to Research (range 23) 69455 | -3/Quarantine | Build established: Wizard-Scout 69516 | -3/Quarantine | Found Subatomic Replicator 69588 | -3/Quarantine | Met incapacitated Sigix Warrior 69588 | -3/Quarantine | Lockdown squad dispatched 69589 | -3/Quarantine | Acquired the access code to the Sigix quarantine chamber 69590 | -3/Quarantine | Unlocked Sigix quarantine chamber 69591 | -3/Quarantine | Found Sigix Containment Pod 69709 | -3/Quarantine | Spotted Fortress 69728 | -3/Quarantine | Discovered new exit (range 6) 69729 | -3/Quarantine | Identified exit to Section 7 69757 | -3/Quarantine | Entered Section 7 69758 | -3/Section 7 | Sensed 20 artifacts in vicinity 69893 | -3/Section 7 | Central database locked down 70180 | -3/Section 7 | Found Spacefold Activator 70477 | -3/Section 7 | Destroyed 9 combat bots 70508 | -3/Section 7 | Found Integrated Dissipator 70509 | -3/Section 7 | Installed Integrated Dissipator, increased core heat dissipation (+20) 70708 | -3/Section 7 | Repaired Mni. Fusion Reactor 70729 | -3/Section 7 | Repaired Imp. Propulsion Shielding? 70789 | -3/Section 7 | Repaired Vibroblade? 70966 | -3/Section 7 | Spotted B-99 Colossus 70981 | -3/Section 7 | Found LRC Matter Compressor 70981 | -3/Section 7 | Installed LRC Matter Compressor, increased matter storage capacity (+125) 70985 | -3/Section 7 | Used Subatomic Replicator to replicate LRC Inertial Stabilizer 70986 | -3/Section 7 | Found LRC Inertial Stabilizer 70987 | -3/Section 7 | Installed LRC Inertial Stabilizer, increased mass support (+10) 70989 | -3/Section 7 | Installed LRC Inertial Stabilizer, increased mass support (+10) 71004 | -3/Section 7 | Found Integrity Redistributor 71005 | -3/Section 7 | Found Integrity Redistributor 71027 | -3/Section 7 | Used Integrity Redistributor, redistributed integrity from core (-54) 71065 | -3/Section 7 | Found Matter Drive 71161 | -3/Section 7 | Found Exp. Hacking Suite 71443 | -3/Section 7 | Found Prototype Protection 71443 | -3/Section 7 | Identified Centrium Heavy Armor Plating 71539 | -3/Section 7 | Entered Research 71539 | -2/Research | Accompanied by 2 allies 71539 | -2/Research | Warlord forces began assault on 0b10 71539 | -2/Research | Evolved 2 slots: Propulsion x1, Utility x1 71547 | -2/Research | Identified exit to Access 71549 | -2/Research | Identified exit to Testing 71564 | -2/Research | Distinguished unit "Death Star" dispatched to help 71564 | -2/Research | Distinguished unit "Lobotomizers" dispatched to help 71606 | -2/Research | Spotted B-90 Cyclops 71621 | -2/Research | Destroyed B-90 Cyclops 71649 | -2/Research | Research machine network offline 71651 | -2/Research | Fabricated Exp. Propulsion Shielding (x1) 71673 | -2/Research | Fabricated Femtoactuators (x1) 71759 | -2/Research | Found Unknown Device 71759 | -2/Research | Identified Launcher Loader 71942 | -2/Research | Spotted Striker 71953 | -2/Research | Met up with Warlord 71955 | -2/Research | Spotted Striker 71955 | -2/Research | Spotted Executioner 72012 | -2/Research | Lost 4 allies 72067 | -2/Research | Entered Testing 72067 | -2/Testing | Accompanied by 1 ally 72080 | -2/Testing | Found Prototype Energy Cannon 72080 | -2/Testing | Identified Disintegrator 72118 | -2/Testing | Repaired Exp. Utility Shielding 72156 | -2/Testing | Repaired Cld. Impulse Thruster? 72179 | -2/Testing | Identified exit to Garrison 72220 | -2/Testing | Central database locked down 72359 | -2/Testing | Found Prototype Launcher 72359 | -2/Testing | Identified Z-bomb Delivery System 72477 | -2/Testing | Protovariant out of control (PX-DPQMOZ5SW8) 72477 | -2/Testing | Unleashed a protovariant (PX-DPQMOZ5SW8) 72598 | -2/Testing | Entered Access 72598 | -1/Access | Evolved 2 slots: Propulsion x1, Weapon x1 72605 | -1/Access | Spotted B-99 Colossus 72607 | -1/Access | Destroyed B-99 Colossus 72639 | -1/Access | Garrison activated, responded to threat 72659 | -1/Access | Lost 4 allies 72665 | -1/Access | Fabricated Cld. Q-thruster (x1) 72876 | -1/Access | Identified exit to Surface 72885 | -1/Access | Identified exit to Command 73067 | -1/Access | Fabricated Exp. Reaction Control System (x1) 73168 | -1/Access | Fabricated Stasis Canceller (x2) 73704 | -1/Access | Spotted B-99 Colossus 73704 | -1/Access | Spotted B-99 Colossus 73705 | -1/Access | Destroyed B-99 Colossus 73708 | -1/Access | Destroyed B-99 Colossus 73715 | -1/Access | Found Unknown Protection 73718 | -1/Access | Identified Hvy. Insulated Plating 73737 | -1/Access | Found Prototype Ballistic Gun 73737 | -1/Access | Identified Multirail 74050 | -1/Access | Destroyed 8 combat bots 74098 | -1/Access | First assault squad dispatched 74182 | *** | Destroyed 0b10! Last Messages --------------- 74143_ O-32 Director: "IFF HANDSHAKE FAILED. SECURING TERMINAL." 74147_ Dropped Drone Bay. 74147_ >> Lost connection to Drone. 74148_ Acquired Exp. Reaction Control System. 74149_ Acquired 19 matter. 74158_ O-32 Director destroyed. 74161_ Acquired data core, extracted dynamic key. 74161_ Acquired 25 matter. 74162_ >> FABRICATOR: Completed Exp. Biometal Leg at (129,65). 74169_ Dropped Nanosword. 74169_ Acquired Unknown Energy Gun. 74169_ Identified Hvy. Laser. 74171_ Dropped Hvy. Laser. 74172_ Acquired Nanosword. 74173_ Sneak attack on R-10 Processor. 74173_ R-10 Processor destroyed. 74174_ R-10 Processor collects Prototype Impact Weapon. 74176_ Acquired 20 matter. 74178_ R-10 Processor collects Prototype Impact Weapon. 74182_ Acquired 30 matter. Map ----- +----------------------------------------------------+ | ## # # ################ ###### | | ## # # ####################### | | ########## # [ # ##### | | ########## # # ##### | | ########## """""" # # * ##### | | ########## """""" # !%# ##### | | ########## """""" + !!+ ]##### | | ########## """""" # =%# """"T"""" ##### | | ########## """""" # !# """"""""""" ##### | | ####################### ####################### | | #################### #################### | | #################### #################### | | #################### == ! #################### | | ####################!*!* =!! #################### | | ####################!!]]=[!%]k#################### | | ####################!!!!!= #################### | | ####################! ]%!!= #################### | | ####################""""" """ #################### | | # ##########""""" "" #################### | | # ##########""""""""["################ | | # ##########"""""""""[################ | | # ########## ===%/################ | | + ########## ====################ | | # ########## !!!################ | | # ""Y"" ########## "" ! ### ## | | # """"" ########## "@ ### ## | | #################### u ### ## | | #################### =### "" ## | | #################### = ### "" ##"" | | #################### R !### """" ##"" | | ################### ## """" ##"" | | ##############"" / ### """" ##S | | ##############"" ### """" ##"" | | +### ##############"" # # """" ##"" | | # ##############T ### "" ##"" | | # ##############"" ### ## | | # ##############"" ### | # | | # ##############"" #####/#############+ | | # ! u % % | | # %[! u u% % u | | ###########+####################### ########### | | ## ######### ################### | | ## ##########k# #### ####### | | ## ############ # ### ####### | | ## """"" ############## # ####### | | ## """"" ################## " + | | ##### """"" ################## """ # | | ##### """"" ################## """ ## #### | | ##### """"" ################## " ## #### | | ##### ################## ## #### | +----------------------------------------------------+ Best States ------------- Heat Dissipation 72 Coolant Potential 100 Energy Generation 49 Energy Capacity 700 Matter Stores 425 Matter Capacity 700 Sight Range 22 Robot Scan Range 20 Terrain Scan Range 30 Terrain Scan Density 1010 ECM Strength 3 Jamming Range 16 Cloak Strength 6 Additional Mass Support 20 Corruption Containment 8 Corruption Block 15 Armor Coverage 400 Resistance: KI 30 Resistance: TH 10 Core Shielding 20 Propulsion Shielding 90 Utility Shielding 90 Weapon Shielding 100 Melee Speed Boost 50 Phase Shifting 5 Evasion (%) 80 Targeting Accuracy 8 Melee Accuracy 16 Core Analysis 6 Recoil Reduction 5 Matter Filtering 50 Force Boost 30 Offensive Hacking 76 Defensive Hacking 26 Trap Extractor Capacity 8 Item Schematics ----------------- Cld. Impulse Thruster | -3/Quarantine | Scanalyzed Smartbomb Launcher | -3/Quarantine | Scanalyzed Femtoactuators | -3/Quarantine | Hacked Adv. Signal Interpreter | -3/Quarantine | Scanalyzed Adv. Reaction Control System | -3/Quarantine | Scanalyzed Exp. Power Amplifier | -3/Quarantine | Hacked Impulse Thruster Array | -3/Quarantine | Hacked Antimissile System | -3/Section 7 | Hacked Enh. Nova Cannon | -3/Section 7 | Hacked Exp. Matter Compressor | -3/Section 7 | Hacked Adv. Cloaking Device | -3/Section 7 | Hacked Adv. Component Analysis Suite | -3/Section 7 | Hacked Q-thruster | -3/Section 7 | Hacked Spectral Analyzer | -3/Section 7 | Hacked Adv. Force Field | -3/Section 7 | Hacked Quantum Reactor | -3/Section 7 | Hacked Arm. Heavy Treads | -3/Section 7 | Hacked Enh. Force Lance | -3/Section 7 | Extracted Imp. Cloaking Device | -3/Section 7 | Extracted Imp. Arc Projector | -3/Section 7 | Extracted Imp. System Restoration Module | -3/Section 7 | Extracted Lrg. Storage Unit | -3/Section 7 | Extracted Adv. Remote Shield | -3/Section 7 | Extracted Nova Cannon | -3/Section 7 | Extracted Matter Filter | -3/Section 7 | Extracted Imp. Force Field | -3/Section 7 | Extracted Greatsword | -3/Section 7 | Extracted Exp. Propulsion Shielding | -2/Research | Hacked Enh. Quantum Rifle | -2/Research | Hacked Centrium Leg | -2/Research | Hacked Biometal Heavy Treads | -2/Research | Hacked Cmb. Linear Gravjet | -2/Research | Hacked Exp. Reaction Control System | -2/Testing | Hacked Exp. Armor Integrity Analyzer | -2/Testing | Hacked Exp. Core Analyzer | -2/Testing | Hacked Cld. Q-thruster | -2/Testing | Hacked Imp. Q-thruster | -2/Testing | Hacked Exp. Melee Analysis Suite | -2/Testing | Hacked Exp. Phase Shifter | -2/Testing | Hacked Exp. Actuator Array | -2/Testing | Hacked Prc. Matter Filter | -2/Testing | Hacked Stasis Canceller | -1/Access | Hacked Exp. Power Shielding | -1/Access | Hacked Cld. Linear Gravjet | -1/Access | Hacked Cld. Antimatter Reactor | -1/Access | Hacked Gui. EMP Blaster | -1/Access | Hacked Adv. Quantum Shading Machine | -1/Access | Hacked Robot Schematics ------------------ P-80 Master | -3/Quarantine | Hacked G-67 Veteran | -2/Research | Hacked Fabricated ------------ H-55 Commando | x2 | -7/Factory | Preloaded Adv. Hacking Suite | x1 | -7/Factory Adv. Signal Interpreter | x2 | -7/Factory Adv. Hacking Suite | x1 | -7/Factory P-60 Hacker | x2 | -7/Factory Biomechanical Wings | x1 | -6/Factory Nuclear Pulse Array | x1 | -6/Factory Smartbomb Launcher | x1 | -6/Factory Imp. System Restoration Module | x2 | -6/Factory Adv. Hacking Suite | x1 | -5/Factory Adv. Signal Interpreter | x2 | -5/Factory Q-thruster | x2 | -5/Factory Cld. Nuclear Pulse Thruster | x1 | -5/Factory Cld. Nuclear Pulse Thruster | x1 | -5/Factory Impulse Thruster Array | x1 | -5/Factory P-60 Hacker | x2 | -5/Factory Adv. Hacking Suite | x1 | -4/Factory Exp. Hacking Suite | x1 | -4/Factory Exp. Hacking Suite | x1 | -4/Factory Exp. Utility Shielding | x1 | -4/Factory Exp. Signal Interpreter | x1 | -4/Factory Exp. Hacking Suite | x1 | -4/Factory Cld. Field Propulsion Drive | x1 | -4/Factory Exp. Terrain Scanner | x1 | -3/Research Quantum Shading Machine | x1 | -3/Research Hcp. Storage Unit | x1 | -3/Research Cld. Impulse Thruster | x1 | -3/Research Exp. Propulsion Shielding | x1 | -2/Research Femtoactuators | x1 | -2/Research Cld. Q-thruster | x1 | -1/Access Exp. Reaction Control System | x1 | -1/Access Stasis Canceller | x2 | -1/Access Alien Tech Used ----------------- Core Reset Matrix Sigix Broadsword Integrated Dissipator Spacefold Activator LRC Matter Compressor Subatomic Replicator LRC Inertial Stabilizer Integrity Redistributor Achievements -------------- 404 Challenges ------------ None Game ------ Seed FlightTrackerGuard Manual? 1 Play Time 30:30:26 Cumulative 747.7 hours Start 2024.11.07 @ 15:27:22 End 2024.12.25 @ 13:08:34 Sessions 101 Manual Loads 0 Difficulty Rogue Special Mode None Game No. 133 Rogue 109 Adventurer 24 Explorer 0 Win Type 3 Total 27 Types 16/2/3/3/1/0/1/1/0 Lore% 72 Gallery% 91 Achievement% 86 Wizard Run 0 Options --------- Layout 0 ASCII 0 Keyboard 0 Movement Mouse Keybinds 0 Fullscreen 1 Font 36/Smallcaps Map View 76x50 Zoom Use 0% Tactical HUD 1 Map Filters SHIFT_HUE(340) Filters NONE Steam 1 RUN: 0f312cf6-0eca-4bdf-a3cf-2a5c7fe770bd